Workbook

Sheet Model
B1: Sheets | C1: Sheet Type | D1: Description | E1: Links
B2: Model | C2: Assumptions | D2: Description of Sheets | E2: =HYPERLINK("#"&B2&"!A2",B2) -> Model
B3: List | C3: Assumptions | D3: Lists and model assumptions | E3: =HYPERLINK("#"&B3&"!A2",B3) -> List
B4: Data | C4: Input Sheet | D4: Primary Inputs Sheet | E4: Data
B5: Calcs | C5: Calculations sheet | D5: Primary calculations page | E5: Calcs
B6: Check | C6: Error trapping | D6: Checks and balances for the model | E6: Check
B7: Summary | C7: Output Sheet | D7: Primary output page | E7: Summary

Sheet States
A1: No | B1: State | C1: NameRng | D1: FullName | E1: Region
A2: 1 | C2: Alabama | D2: Alabama | E2: The South
A3: 2 | C3: Alaska | D3: Alaska | E3: The West
A4: 3 | C4: Arizona | D4: Arizona | E4: The West
A5: 4 | C5: Arkansas | D5: Arkansas | E5: The South
A6: 5 | C6: California | D6: California | E6: The West
A7: 6 | C7: Colorado | D7: Colorado | E7: The West
A8: 7 | C8: Connecticut | D8: Connecticut | E8: The North-East
A9: 8 | C9: Delaware | D9: Delaware | E9: The North-East
A10: 9 | C10: Florida | D10: Florida | E10: The South
A11: 10 | C11: Georgia | D11: Georgia | E11: The South
A12: 11 | C12: Hawaii | D12: Hawaii | E12: The West
A13: 12 | C13: Idaho | D13: Idaho | E13: The West
A14: 13 | C14: Illinois | D14: Illinois | E14: The Mid-West
A15: 14 | C15: Indiana | D15: Indiana | E15: The Mid-West
A16: 15 | C16: Iowa | D16: Iowa | E16: The Mid-West
A17: 16 | C17: Kansas | D17: Kansas | E17: The Mid-West
A18: 17 | C18: Kentucky | D18: Kentucky | E18: The South
A19: 18 | C19: Louisiana | D19: Louisiana | E19: The South
A20: 19 | C20: Maine | D20: Maine | E20: The North-East
A21: 20 | C21: Maryland | D21: Maryland | E21: The North-East
A22: 21 | C22: Massachusetts | D22: Massachusetts | E22: The North-East
A23: 22 | C23: Michigan | D23: Michigan | E23: The Mid-West
A24: 23 | C24: Minnesota | D24: Minnesota | E24: The Mid-West
A25: 24 | C25: Mississippi | D25: Mississippi | E25: The South
A26: 25 | C26: Missouri | D26: Missouri | E26: The Mid-West
A27: 26 | C27: Montana | D27: Montana | E27: The West
A28: 27 | C28: Nebraska | D28: Nebraska | E28: The Mid-West
A29: 28 | C29: Nevada | D29: Nevada | E29: The West
A30: 29 | C30: NewHampshire | D30: New Hampshire | E30: The North-East
A31: 30 | C31: NewJersey | D31: New Jersey | E31: The North-East
A32: 31 | C32: NewMexico | D32: New Mexico | E32: The West
A33: 32 | C33: NewYork | D33: New York | E33: The North-East
A34: 33 | C34: NorthCarolina | D34: North Carolina | E34: The South
A35: 34 | C35: NorthDakota | D35: North Dakota | E35: The Mid-West
A36: 35 | C36: Ohio | D36: Ohio | E36: The Mid-West
A37: 36 | C37: Oklahoma | D37: Oklahoma | E37: The South
A38: 37 | C38: Oregon | D38: Oregon | E38: The West
A39: 38 | C39: Pennsylvania | D39: Pennsylvania | E39: The North-East
A40: 39 | C40: RhodeIsland | D40: Rhode Island | E40: The North-East
A41: 40 | C41: SouthCarolina | D41: South Carolina | E41: The South
A42: 41 | C42: SouthDakota | D42: South Dakota | E42: The Mid-West
A43: 42 | C43: Tennessee | D43: Tennessee | E43: The South
A44: 43 | C44: Texas | D44: Texas | E44: The South
A45: 44 | C45: Utah | D45: Utah | E45: The West
A46: 45 | C46: Vermont | D46: Vermont | E46: The North-East
A47: 46 | C47: Virginia | D47: Virginia | E47: The South
A48: 47 | C48: Washington | D48: Washington | E48: The West
A49: 48 | C49: WestVirginia | D49: West Virginia | E49: The South
A50: 49 | C50: Wisconsin | D50: Wisconsin | E50: The Mid-West
A51: 50 | C51: Wyoming | D51: Wyoming | E51: The West

Sheet Data
A1: Index | B1: State | C1: Region | D1: Pop 1 Jul 12 | E1: Pop April 1, 2010 | F1: Pop April 1, 2000 | G1: % of US | H1: Population Density | I1: Tax Revenue | J1: Expenses | K1: Unemployment | L1: Pop Rank | M1: Density Rank | N1: Rev Rank | O1: Exp Rank | P1: Unemployment Rank | Q1: Pop Rank Reg | R1: Density Rank Reg | S1: Rev Rank | T1: Exp Rank | U1: Unemployment Rank Reg
A2: 1 | B2: California | C2: =VLOOKUP(B2,States!$D$2:$E$51,2,0) -> The West | D2: 38041430 | E2: 37253956 | F2: 33871648 | G2: 0.1191 | H2: 244.2 | I2: 292563574000 | J2: 4.359148053e+11 | K2: 0.087 | L2: =RANK(D2,D$2:D$51)+COUNTIF(D$2:D2,D2)-1 -> 1 | M2: =RANK(H2,H$2:H$51)+COUNTIF(H$2:H2,H2)-1 -> 10 | N2: =RANK(I2,I$2:I$51)+COUNTIF(I$2:I2,I2)-1 -> 1 | O2: =RANK(J2,J$2:J$51)+COUNTIF(J$2:J2,J2)-1 -> 1 | P2: =RANK(K2,K$2:K$51)+COUNTIF(K$2:K2,K2)-1 -> 5 | Q2: =SUMPRODUCT((C$2:C$601=$C2)*(D$2:D$601>D2))+1 -> 1 | R2: =SUMPRODUCT((C$2:C$601=$C2)*(H$2:H$601>H2))+1 -> 1 | S2: =SUMPRODUCT(($C$2:$C$601=$C2)*(I$2:I$601>I2))+1 -> 1 | T2: =SUMPRODUCT(($C$2:$C$601=$C2)*(I$2:I$601>I2))+1 -> 1 | U2: =COUNTIFS($C:$C,$C2,$K:$K,">"&$K2)+COUNTIFS($C$2:$C2,$C2,$K$2:$K2,$K2) -> 2
A3: 2 | B3: Texas | C3: =VLOOKUP(B3,States!$D$2:$E$51,2,0) -> The South | D3: 26059203 | E3: 25145561 | F3: 20851820 | G3: 0.0804 | H3: 98.07 | I3: 219459878000 | J3: 293723251710 | K3: 0.062 | L3: =RANK(D3,D$2:D$51)+COUNTIF(D$2:D3,D3)-1 -> 2 | M3: =RANK(H3,H$2:H$51)+COUNTIF(H$2:H3,H3)-1 -> 26 | N3: =RANK(I3,I$2:I$51)+COUNTIF(I$2:I3,I3)-1 -> 2 | O3: =RANK(J3,J$2:J$51)+COUNTIF(J$2:J3,J3)-1 -> 2 | P3: =RANK(K3,K$2:K$51)+COUNTIF(K$2:K3,K3)-1 -> 35 | Q3: 1 | R3: =SUMPRODUCT((C$2:C$601=$C3)*(H$2:H$601>H3))+1 -> 9 | S3: =SUMPRODUCT(($C$2:$C$601=$C3)*(I$2:I$601>I3))+1 -> 1 | T3: =SUMPRODUCT(($C$2:$C$601=$C3)*(I$2:I$601>I3))+1 -> 1 | U3: =COUNTIFS($C:$C,$C3,$K:$K,">"&$K3)+COUNTIFS($C$2:$C3,$C3,$K$2:$K3,$K3) -> 11
A4: 3 | B4: New York | C4: =VLOOKUP(B4,States!$D$2:$E$51,2,0) -> The North-East | D4: 19570261 | E4: 19378102 | F4: 18976457 | G4: 0.0619 | H4: 415.3 | I4: 201167954000 | J4: 2.261376776e+11 | K4: 0.077 | L4: =RANK(D4,D$2:D$51)+COUNTIF(D$2:D4,D4)-1 -> 3 | M4: =RANK(H4,H$2:H$51)+COUNTIF(H$2:H4,H4)-1 -> 6 | N4: =RANK(I4,I$2:I$51)+COUNTIF(I$2:I4,I4)-1 -> 3 | O4: =RANK(J4,J$2:J$51)+COUNTIF(J$2:J4,J4)-1 -> 3 | P4: =RANK(K4,K$2:K$51)+COUNTIF(K$2:K4,K4)-1 -> 14 | Q4: 1 | R4: 6 | S4: =SUMPRODUCT(($C$2:$C$601=$C4)*(I$2:I$601>I4))+1 -> 1 | T4: 1 | U4: =COUNTIFS($C:$C,$C4,$K:$K,">"&$K4)+COUNTIFS($C$2:$C4,$C4,$K$2:$K4,$K4) -> 4
A5: 4 | B5: Florida | C5: =VLOOKUP(B5,States!$D$2:$E$51,2,0) -> The South | D5: 19317568 | E5: 18801310 | F5: 15982378 | G5: 0.0601 | H5: 360.2 | I5: 122249635000 | J5: 2.195617839e+11 | K5: 0.067 | L5: =RANK(D5,D$2:D$51)+COUNTIF(D$2:D5,D5)-1 -> 4 | M5: =RANK(H5,H$2:H$51)+COUNTIF(H$2:H5,H5)-1 -> 7 | N5: =RANK(I5,I$2:I$51)+COUNTIF(I$2:I5,I5)-1 -> 5 | O5: =RANK(J5,J$2:J$51)+COUNTIF(J$2:J5,J5)-1 -> 4 | P5: =RANK(K5,K$2:K$51)+COUNTIF(K$2:K5,K5)-1 -> 25 | Q5: =SUMPRODUCT((C$2:C$601=$C5)*(D$2:D$601>D5))+1 -> 2 | R5: 1 | S5: 2 | T5: 2 | U5: =COUNTIFS($C:$C,$C5,$K:$K,">"&$K5)+COUNTIFS($C$2:$C5,$C5,$K$2:$K5,$K5) -> 8
A6: 5 | B6: Illinois | C6: =VLOOKUP(B6,States!$D$2:$E$51,2,0) -> The Mid-West | D6: 12875255 | E6: 12830632 | F6: 12419293 | G6: 0.041 | H6: 231.9 | I6: 124431227000 | J6: 149784245275 | K6: 0.089 | L6: =RANK(D6,D$2:D$51)+COUNTIF(D$2:D6,D6)-1 -> 5 | M6: =RANK(H6,H$2:H$51)+COUNTIF(H$2:H6,H6)-1 -> 11 | N6: =RANK(I6,I$2:I$51)+COUNTIF(I$2:I6,I6)-1 -> 4 | O6: =RANK(J6,J$2:J$51)+COUNTIF(J$2:J6,J6)-1 -> 5 | P6: =RANK(K6,K$2:K$51)+COUNTIF(K$2:K6,K6)-1 -> 4 | Q6: =SUMPRODUCT((C$2:C$601=$C6)*(D$2:D$601>D6))+1 -> 1 | R6: 2 | S6: 1 | T6: 1 | U6: =COUNTIFS($C:$C,$C6,$K:$K,">"&$K6)+COUNTIFS($C$2:$C6,$C6,$K$2:$K6,$K6) -> 2
A7: 6 | B7: Pennsylvania | C7: =VLOOKUP(B7,States!$D$2:$E$51,2,0) -> The North-East | D7: 12763536 | E7: 12702379 | F7: 12281054 | G7: 0.0406 | H7: 285.3 | I7: 108961515000 | J7: 148322935565 | K7: 0.075 | L7: =RANK(D7,D$2:D$51)+COUNTIF(D$2:D7,D7)-1 -> 6 | M7: =RANK(H7,H$2:H$51)+COUNTIF(H$2:H7,H7)-1 -> 8 | N7: =RANK(I7,I$2:I$51)+COUNTIF(I$2:I7,I7)-1 -> 8 | O7: =RANK(J7,J$2:J$51)+COUNTIF(J$2:J7,J7)-1 -> 6 | P7: =RANK(K7,K$2:K$51)+COUNTIF(K$2:K7,K7)-1 -> 16 | Q7: 2 | R7: 7 | S7: 3 | T7: 3 | U7: =COUNTIFS($C:$C,$C7,$K:$K,">"&$K7)+COUNTIFS($C$2:$C7,$C7,$K$2:$K7,$K7) -> 5
A8: 7 | B8: Ohio | C8: =VLOOKUP(B8,States!$D$2:$E$51,2,0) -> The Mid-West | D8: 11544225 | E8: 11536504 | F8: 11353140 | G8: 0.0369 | H8: 282.5 | I8: 111094276000 | J8: 1.348058207e+11 | K8: 0.075 | L8: =RANK(D8,D$2:D$51)+COUNTIF(D$2:D8,D8)-1 -> 7 | M8: =RANK(H8,H$2:H$51)+COUNTIF(H$2:H8,H8)-1 -> 9 | N8: =RANK(I8,I$2:I$51)+COUNTIF(I$2:I8,I8)-1 -> 7 | O8: =RANK(J8,J$2:J$51)+COUNTIF(J$2:J8,J8)-1 -> 7 | P8: =RANK(K8,K$2:K$51)+COUNTIF(K$2:K8,K8)-1 -> 17 | Q8: 2 | R8: 1 | S8: 2 | T8: 2 | U8: =COUNTIFS($C:$C,$C8,$K:$K,">"&$K8)+COUNTIFS($C$2:$C8,$C8,$K$2:$K8,$K8) -> 3
A9: 8 | B9: Georgia | C9: =VLOOKUP(B9,States!$D$2:$E$51,2,0) -> The South | D9: 9919945 | E9: 9687653 | F9: 8186453 | G9: 0.031 | H9: 172.5 | I9: 65498308000 | J9: 113251502525 | K9: 0.081 | L9: =RANK(D9,D$2:D$51)+COUNTIF(D$2:D9,D9)-1 -> 8 | M9: =RANK(H9,H$2:H$51)+COUNTIF(H$2:H9,H9)-1 -> 17 | N9: =RANK(I9,I$2:I$51)+COUNTIF(I$2:I9,I9)-1 -> 11 | O9: =RANK(J9,J$2:J$51)+COUNTIF(J$2:J9,J9)-1 -> 9 | P9: =RANK(K9,K$2:K$51)+COUNTIF(K$2:K9,K9)-1 -> 11 | Q9: 3 | R9: 4 | S9: 3 | T9: 3 | U9: =COUNTIFS($C:$C,$C9,$K:$K,">"&$K9)+COUNTIFS($C$2:$C9,$C9,$K$2:$K9,$K9) -> 4
A10: 9 | B10: Michigan | C10: =VLOOKUP(B10,States!$D$2:$E$51,2,0) -> The Mid-West | D10: 9883360 | E10: 9883640 | F10: 9938444 | G10: 0.0316 | H10: 174.8 | I10: 59210158000 | J10: 1.154434671e+11 | K10: 0.09 | L10: =RANK(D10,D$2:D$51)+COUNTIF(D$2:D10,D10)-1 -> 9 | M10: =RANK(H10,H$2:H$51)+COUNTIF(H$2:H10,H10)-1 -> 16 | N10: =RANK(I10,I$2:I$51)+COUNTIF(I$2:I10,I10)-1 -> 14 | O10: =RANK(J10,J$2:J$51)+COUNTIF(J$2:J10,J10)-1 -> 8 | P10: =RANK(K10,K$2:K$51)+COUNTIF(K$2:K10,K10)-1 -> 3 | Q10: 3 | R10: 4 | S10: 4 | T10: 4 | U10: =COUNTIFS($C:$C,$C10,$K:$K,">"&$K10)+COUNTIFS($C$2:$C10,$C10,$K$2:$K10,$K10) -> 1
A11: 10 | B11: North Carolina | C11: =VLOOKUP(B11,States!$D$2:$E$51,2,0) -> The South | D11: 9752073 | E11: 9535483 | F11: 8049313 | G11: 0.0305 | H11: 200.6 | I11: 61600064000 | J11: 1.114248654e+11 | K11: 0.08 | L11: =RANK(D11,D$2:D$51)+COUNTIF(D$2:D11,D11)-1 -> 10 | M11: =RANK(H11,H$2:H$51)+COUNTIF(H$2:H11,H11)-1 -> 14 | N11: =RANK(I11,I$2:I$51)+COUNTIF(I$2:I11,I11)-1 -> 13 | O11: =RANK(J11,J$2:J$51)+COUNTIF(J$2:J11,J11)-1 -> 10 | P11: =RANK(K11,K$2:K$51)+COUNTIF(K$2:K11,K11)-1 -> 12 | Q11: 4 | R11: 3 | S11: 5 | T11: 5 | U11: =COUNTIFS($C:$C,$C11,$K:$K,">"&$K11)+COUNTIFS($C$2:$C11,$C11,$K$2:$K11,$K11) -> 5
A12: 11 | B12: New Jersey | C12: =VLOOKUP(B12,States!$D$2:$E$51,2,0) -> The North-East | D12: 8864590 | E12: 8791894 | F12: 8414350 | G12: 0.0281 | H12: 1189 | I12: 111377490000 | J12: 1.026570071e+11 | K12: 0.084 | L12: =RANK(D12,D$2:D$51)+COUNTIF(D$2:D12,D12)-1 -> 11 | M12: =RANK(H12,H$2:H$51)+COUNTIF(H$2:H12,H12)-1 -> 1 | N12: =RANK(I12,I$2:I$51)+COUNTIF(I$2:I12,I12)-1 -> 6 | O12: =RANK(J12,J$2:J$51)+COUNTIF(J$2:J12,J12)-1 -> 11 | P12: =RANK(K12,K$2:K$51)+COUNTIF(K$2:K12,K12)-1 -> 7 | Q12: 3 | R12: 1 | S12: 2 | T12: 2 | U12: =COUNTIFS($C:$C,$C12,$K:$K,">"&$K12)+COUNTIFS($C$2:$C12,$C12,$K$2:$K12,$K12) -> 2
A13: 12 | B13: Virginia | C13: =VLOOKUP(B13,States!$D$2:$E$51,2,0) -> The South | D13: 8185867 | E13: 8001024 | F13: 7078515 | G13: 0.0256 | H13: 207.3 | I13: 64297400000 | J13: 93523821440 | K13: 0.056 | L13: =RANK(D13,D$2:D$51)+COUNTIF(D$2:D13,D13)-1 -> 12 | M13: =RANK(H13,H$2:H$51)+COUNTIF(H$2:H13,H13)-1 -> 13 | N13: =RANK(I13,I$2:I$51)+COUNTIF(I$2:I13,I13)-1 -> 12 | O13: =RANK(J13,J$2:J$51)+COUNTIF(J$2:J13,J13)-1 -> 12 | P13: =RANK(K13,K$2:K$51)+COUNTIF(K$2:K13,K13)-1 -> 37 | Q13: 5 | R13: 2 | S13: 4 | T13: 4 | U13: =COUNTIFS($C:$C,$C13,$K:$K,">"&$K13)+COUNTIFS($C$2:$C13,$C13,$K$2:$K13,$K13) -> 13
A14: 13 | B14: Washington | C14: =VLOOKUP(B14,States!$D$2:$E$51,2,0) -> The West | D14: 6897012 | E14: 6724540 | F14: 5894121 | G14: 0.0215 | H14: 102.6 | I14: 52443862000 | J14: 7.854539691e+10 | K14: 0.07 | L14: =RANK(D14,D$2:D$51)+COUNTIF(D$2:D14,D14)-1 -> 13 | M14: =RANK(H14,H$2:H$51)+COUNTIF(H$2:H14,H14)-1 -> 24 | N14: =RANK(I14,I$2:I$51)+COUNTIF(I$2:I14,I14)-1 -> 15 | O14: =RANK(J14,J$2:J$51)+COUNTIF(J$2:J14,J14)-1 -> 13 | P14: =RANK(K14,K$2:K$51)+COUNTIF(K$2:K14,K14)-1 -> 22 | Q14: 2 | R14: 3 | S14: 2 | T14: 2 | U14: =COUNTIFS($C:$C,$C14,$K:$K,">"&$K14)+COUNTIFS($C$2:$C14,$C14,$K$2:$K14,$K14) -> 5
A15: 14 | B15: Massachusetts | C15: =VLOOKUP(B15,States!$D$2:$E$51,2,0) -> The North-East | D15: 6646144 | E15: 6547629 | F15: 6349097 | G15: 0.0209 | H15: 852.1 | I15: 79826976000 | J15: 7.635343235e+10 | K15: 0.072 | L15: =RANK(D15,D$2:D$51)+COUNTIF(D$2:D15,D15)-1 -> 14 | M15: =RANK(H15,H$2:H$51)+COUNTIF(H$2:H15,H15)-1 -> 2 | N15: =RANK(I15,I$2:I$51)+COUNTIF(I$2:I15,I15)-1 -> 9 | O15: =RANK(J15,J$2:J$51)+COUNTIF(J$2:J15,J15)-1 -> 14 | P15: =RANK(K15,K$2:K$51)+COUNTIF(K$2:K15,K15)-1 -> 21 | Q15: 4 | R15: 2 | S15: 4 | T15: 4 | U15: =COUNTIFS($C:$C,$C15,$K:$K,">"&$K15)+COUNTIFS($C$2:$C15,$C15,$K$2:$K15,$K15) -> 6
A16: 15 | B16: Arizona | C16: =VLOOKUP(B16,States!$D$2:$E$51,2,0) -> The West | D16: 6553255 | E16: 6392017 | F16: 5130632 | G16: 0.0204 | H16: 57.05 | I16: 34850436000 | J16: 74526795210 | K16: 0.082 | L16: =RANK(D16,D$2:D$51)+COUNTIF(D$2:D16,D16)-1 -> 15 | M16: =RANK(H16,H$2:H$51)+COUNTIF(H$2:H16,H16)-1 -> 33 | N16: =RANK(I16,I$2:I$51)+COUNTIF(I$2:I16,I16)-1 -> 23 | O16: =RANK(J16,J$2:J$51)+COUNTIF(J$2:J16,J16)-1 -> 16 | P16: =RANK(K16,K$2:K$51)+COUNTIF(K$2:K16,K16)-1 -> 10 | Q16: 3 | R16: 4 | S16: 4 | T16: 4 | U16: =COUNTIFS($C:$C,$C16,$K:$K,">"&$K16)+COUNTIFS($C$2:$C16,$C16,$K$2:$K16,$K16) -> 3
A17: 16 | B17: Indiana | C17: =VLOOKUP(B17,States!$D$2:$E$51,2,0) -> The Mid-West | D17: 6537334 | E17: 6483802 | F17: 6080485 | G17: 0.0207 | H17: 182.5 | I17: 51238512000 | J17: 7.562277749e+10 | K17: 0.075 | L17: =RANK(D17,D$2:D$51)+COUNTIF(D$2:D17,D17)-1 -> 16 | M17: =RANK(H17,H$2:H$51)+COUNTIF(H$2:H17,H17)-1 -> 15 | N17: =RANK(I17,I$2:I$51)+COUNTIF(I$2:I17,I17)-1 -> 16 | O17: =RANK(J17,J$2:J$51)+COUNTIF(J$2:J17,J17)-1 -> 15 | P17: =RANK(K17,K$2:K$51)+COUNTIF(K$2:K17,K17)-1 -> 18 | Q17: 4 | R17: 3 | S17: 5 | T17: 5 | U17: =COUNTIFS($C:$C,$C17,$K:$K,">"&$K17)+COUNTIFS($C$2:$C17,$C17,$K$2:$K17,$K17) -> 4
A18: 17 | B18: Tennessee | C18: =VLOOKUP(B18,States!$D$2:$E$51,2,0) -> The South | D18: 6456243 | E18: 6346105 | F18: 5689283 | G18: 0.0203 | H18: 156.6 | I18: 47010303000 | J18: 7.416146778e+10 | K18: 0.084 | L18: =RANK(D18,D$2:D$51)+COUNTIF(D$2:D18,D18)-1 -> 17 | M18: =RANK(H18,H$2:H$51)+COUNTIF(H$2:H18,H18)-1 -> 19 | N18: =RANK(I18,I$2:I$51)+COUNTIF(I$2:I18,I18)-1 -> 20 | O18: =RANK(J18,J$2:J$51)+COUNTIF(J$2:J18,J18)-1 -> 17 | P18: =RANK(K18,K$2:K$51)+COUNTIF(K$2:K18,K18)-1 -> 8 | Q18: 6 | R18: 6 | S18: 6 | T18: 6 | U18: =COUNTIFS($C:$C,$C18,$K:$K,">"&$K18)+COUNTIFS($C$2:$C18,$C18,$K$2:$K18,$K18) -> 2
A19: 18 | B19: Missouri | C19: =VLOOKUP(B19,States!$D$2:$E$51,2,0) -> The Mid-West | D19: 6021988 | E19: 5988927 | F19: 5595211 | G19: 0.0191 | H19: 87.26 | I19: 48413247000 | J19: 6.977753865e+10 | K19: 0.065 | L19: =RANK(D19,D$2:D$51)+COUNTIF(D$2:D19,D19)-1 -> 18 | M19: =RANK(H19,H$2:H$51)+COUNTIF(H$2:H19,H19)-1 -> 28 | N19: =RANK(I19,I$2:I$51)+COUNTIF(I$2:I19,I19)-1 -> 17 | O19: =RANK(J19,J$2:J$51)+COUNTIF(J$2:J19,J19)-1 -> 18 | P19: =RANK(K19,K$2:K$51)+COUNTIF(K$2:K19,K19)-1 -> 30 | Q19: 5 | R19: 6 | S19: 6 | T19: 6 | U19: =COUNTIFS($C:$C,$C19,$K:$K,">"&$K19)+COUNTIFS($C$2:$C19,$C19,$K$2:$K19,$K19) -> 5
A20: 19 | B20: Maryland | C20: =VLOOKUP(B20,States!$D$2:$E$51,2,0) -> The North-East | D20: 5884563 | E20: 5773552 | F20: 5296486 | G20: 0.0185 | H20: 606.2 | I20: 48107002000 | J20: 6.758557409e+10 | K20: 0.067 | L20: =RANK(D20,D$2:D$51)+COUNTIF(D$2:D20,D20)-1 -> 19 | M20: =RANK(H20,H$2:H$51)+COUNTIF(H$2:H20,H20)-1 -> 4 | N20: =RANK(I20,I$2:I$51)+COUNTIF(I$2:I20,I20)-1 -> 18 | O20: =RANK(J20,J$2:J$51)+COUNTIF(J$2:J20,J20)-1 -> 19 | P20: =RANK(K20,K$2:K$51)+COUNTIF(K$2:K20,K20)-1 -> 26 | Q20: 5 | R20: 4 | S20: 5 | T20: 5 | U20: =COUNTIFS($C:$C,$C20,$K:$K,">"&$K20)+COUNTIFS($C$2:$C20,$C20,$K$2:$K20,$K20) -> 8
A21: 20 | B21: Wisconsin | C21: =VLOOKUP(B21,States!$D$2:$E$51,2,0) -> The Mid-West | D21: 5726398 | E21: 5686986 | F21: 5363675 | G21: 0.0182 | H21: 105.2 | I21: 41498033000 | J21: 66489591805 | K21: 0.065 | L21: =RANK(D21,D$2:D$51)+COUNTIF(D$2:D21,D21)-1 -> 20 | M21: =RANK(H21,H$2:H$51)+COUNTIF(H$2:H21,H21)-1 -> 22 | N21: =RANK(I21,I$2:I$51)+COUNTIF(I$2:I21,I21)-1 -> 21 | O21: =RANK(J21,J$2:J$51)+COUNTIF(J$2:J21,J21)-1 -> 20 | P21: =RANK(K21,K$2:K$51)+COUNTIF(K$2:K21,K21)-1 -> 31 | Q21: 6 | R21: 5 | S21: 7 | T21: 7 | U21: =COUNTIFS($C:$C,$C21,$K:$K,">"&$K21)+COUNTIFS($C$2:$C21,$C21,$K$2:$K21,$K21) -> 6
A22: 21 | B22: Minnesota | C22: =VLOOKUP(B22,States!$D$2:$E$51,2,0) -> The Mid-West | D22: 5379139 | E22: 5303925 | F22: 4919479 | G22: 0.017 | H22: 67.14 | I22: 78685402000 | J22: 6.210566268e+10 | K22: 0.048 | L22: =RANK(D22,D$2:D$51)+COUNTIF(D$2:D22,D22)-1 -> 21 | M22: =RANK(H22,H$2:H$51)+COUNTIF(H$2:H22,H22)-1 -> 31 | N22: =RANK(I22,I$2:I$51)+COUNTIF(I$2:I22,I22)-1 -> 10 | O22: =RANK(J22,J$2:J$51)+COUNTIF(J$2:J22,J22)-1 -> 21 | P22: =RANK(K22,K$2:K$51)+COUNTIF(K$2:K22,K22)-1 -> 42 | Q22: 7 | R22: 7 | S22: 3 | T22: 3 | U22: =COUNTIFS($C:$C,$C22,$K:$K,">"&$K22)+COUNTIFS($C$2:$C22,$C22,$K$2:$K22,$K22) -> 8
A23: 22 | B23: Colorado | C23: =VLOOKUP(B23,States!$D$2:$E$51,2,0) -> The West | D23: 5187582 | E23: 5029196 | F23: 4301261 | G23: 0.0161 | H23: 49.33 | I23: 41252701000 | J23: 5.881771583e+10 | K23: 0.068 | L23: =RANK(D23,D$2:D$51)+COUNTIF(D$2:D23,D23)-1 -> 22 | M23: =RANK(H23,H$2:H$51)+COUNTIF(H$2:H23,H23)-1 -> 37 | N23: =RANK(I23,I$2:I$51)+COUNTIF(I$2:I23,I23)-1 -> 22 | O23: =RANK(J23,J$2:J$51)+COUNTIF(J$2:J23,J23)-1 -> 22 | P23: =RANK(K23,K$2:K$51)+COUNTIF(K$2:K23,K23)-1 -> 23 | Q23: 4 | R23: 5 | S23: 3 | T23: 3 | U23: =COUNTIFS($C:$C,$C23,$K:$K,">"&$K23)+COUNTIFS($C$2:$C23,$C23,$K$2:$K23,$K23) -> 6
A24: 23 | B24: Alabama | C24: =VLOOKUP(B24,States!$D$2:$E$51,2,0) -> The South | D24: 4822023 | E24: 4779736 | F24: 4447100 | G24: 0.0153 | H24: 94.65 | I24: 20882949000 | J24: 5.589509641e+10 | K24: 0.065 | L24: =RANK(D24,D$2:D$51)+COUNTIF(D$2:D24,D24)-1 -> 23 | M24: =RANK(H24,H$2:H$51)+COUNTIF(H$2:H24,H24)-1 -> 27 | N24: =RANK(I24,I$2:I$51)+COUNTIF(I$2:I24,I24)-1 -> 31 | O24: =RANK(J24,J$2:J$51)+COUNTIF(J$2:J24,J24)-1 -> 23 | P24: =RANK(K24,K$2:K$51)+COUNTIF(K$2:K24,K24)-1 -> 32 | Q24: 7 | R24: 10 | S24: 11 | T24: 11 | U24: =COUNTIFS($C:$C,$C24,$K:$K,">"&$K24)+COUNTIFS($C$2:$C24,$C24,$K$2:$K24,$K24) -> 9
A25: 24 | B25: South Carolina | C25: =VLOOKUP(B25,States!$D$2:$E$51,2,0) -> The South | D25: 4723723 | E25: 4625364 | F25: 4012012 | G25: 0.0148 | H25: 157.1 | I25: 18557166000 | J25: 54068459270 | K25: 0.075 | L25: =RANK(D25,D$2:D$51)+COUNTIF(D$2:D25,D25)-1 -> 24 | M25: =RANK(H25,H$2:H$51)+COUNTIF(H$2:H25,H25)-1 -> 18 | N25: =RANK(I25,I$2:I$51)+COUNTIF(I$2:I25,I25)-1 -> 34 | O25: =RANK(J25,J$2:J$51)+COUNTIF(J$2:J25,J25)-1 -> 24 | P25: =RANK(K25,K$2:K$51)+COUNTIF(K$2:K25,K25)-1 -> 19 | Q25: 8 | R25: 5 | S25: 12 | T25: 12 | U25: =COUNTIFS($C:$C,$C25,$K:$K,">"&$K25)+COUNTIFS($C$2:$C25,$C25,$K$2:$K25,$K25) -> 6
A26: 25 | B26: Louisiana | C26: =VLOOKUP(B26,States!$D$2:$E$51,2,0) -> The South | D26: 4601893 | E26: 4533372 | F26: 4468976 | G26: 0.0145 | H26: 105 | I26: 34811072000 | J26: 5.297247699e+10 | K26: 0.065 | L26: =RANK(D26,D$2:D$51)+COUNTIF(D$2:D26,D26)-1 -> 25 | M26: =RANK(H26,H$2:H$51)+COUNTIF(H$2:H26,H26)-1 -> 23 | N26: =RANK(I26,I$2:I$51)+COUNTIF(I$2:I26,I26)-1 -> 24 | O26: =RANK(J26,J$2:J$51)+COUNTIF(J$2:J26,J26)-1 -> 25 | P26: =RANK(K26,K$2:K$51)+COUNTIF(K$2:K26,K26)-1 -> 33 | Q26: 9 | R26: 8 | S26: 7 | T26: 7 | U26: =COUNTIFS($C:$C,$C26,$K:$K,">"&$K26)+COUNTIFS($C$2:$C26,$C26,$K$2:$K26,$K26) -> 10
A27: 26 | B27: Kentucky | C27: =VLOOKUP(B27,States!$D$2:$E$51,2,0) -> The South | D27: 4380415 | E27: 4339367 | F27: 4041769 | G27: 0.0139 | H27: 110 | I27: 25085813000 | J27: 5.078051242e+10 | K27: 0.084 | L27: =RANK(D27,D$2:D$51)+COUNTIF(D$2:D27,D27)-1 -> 26 | M27: =RANK(H27,H$2:H$51)+COUNTIF(H$2:H27,H27)-1 -> 21 | N27: =RANK(I27,I$2:I$51)+COUNTIF(I$2:I27,I27)-1 -> 27 | O27: =RANK(J27,J$2:J$51)+COUNTIF(J$2:J27,J27)-1 -> 26 | P27: =RANK(K27,K$2:K$51)+COUNTIF(K$2:K27,K27)-1 -> 9 | Q27: 10 | R27: 7 | S27: 10 | T27: 10 | U27: =COUNTIFS($C:$C,$C27,$K:$K,">"&$K27)+COUNTIFS($C$2:$C27,$C27,$K$2:$K27,$K27) -> 3
A28: 27 | B28: Oregon | C28: =VLOOKUP(B28,States!$D$2:$E$51,2,0) -> The West | D28: 3899353 | E28: 3831074 | F28: 3421399 | G28: 0.0122 | H28: 40.33 | I28: 22716602000 | J28: 44569946155 | K28: 0.077 | L28: =RANK(D28,D$2:D$51)+COUNTIF(D$2:D28,D28)-1 -> 27 | M28: =RANK(H28,H$2:H$51)+COUNTIF(H$2:H28,H28)-1 -> 39 | N28: =RANK(I28,I$2:I$51)+COUNTIF(I$2:I28,I28)-1 -> 28 | O28: =RANK(J28,J$2:J$51)+COUNTIF(J$2:J28,J28)-1 -> 27 | P28: =RANK(K28,K$2:K$51)+COUNTIF(K$2:K28,K28)-1 -> 15 | Q28: 5 | R28: 6 | S28: 5 | T28: 5 | U28: =COUNTIFS($C:$C,$C28,$K:$K,">"&$K28)+COUNTIFS($C$2:$C28,$C28,$K$2:$K28,$K28) -> 4
A29: 28 | B29: Oklahoma | C29: =VLOOKUP(B29,States!$D$2:$E$51,2,0) -> The South | D29: 3814820 | E29: 3751351 | F29: 3450654 | G29: 0.012 | H29: 55.22 | I29: 27087264000 | J29: 43839291300 | K29: 0.055 | L29: =RANK(D29,D$2:D$51)+COUNTIF(D$2:D29,D29)-1 -> 28 | M29: =RANK(H29,H$2:H$51)+COUNTIF(H$2:H29,H29)-1 -> 35 | N29: =RANK(I29,I$2:I$51)+COUNTIF(I$2:I29,I29)-1 -> 25 | O29: =RANK(J29,J$2:J$51)+COUNTIF(J$2:J29,J29)-1 -> 28 | P29: =RANK(K29,K$2:K$51)+COUNTIF(K$2:K29,K29)-1 -> 39 | Q29: 11 | R29: 14 | S29: 8 | T29: 8 | U29: =COUNTIFS($C:$C,$C29,$K:$K,">"&$K29)+COUNTIFS($C$2:$C29,$C29,$K$2:$K29,$K29) -> 14
A30: 29 | B30: Connecticut | C30: =VLOOKUP(B30,States!$D$2:$E$51,2,0) -> The North-East | D30: 3590347 | E30: 3574097 | F30: 3405565 | G30: 0.0114 | H30: 741.4 | I30: 47262702000 | J30: 41647326735 | K30: 0.079 | L30: =RANK(D30,D$2:D$51)+COUNTIF(D$2:D30,D30)-1 -> 29 | M30: =RANK(H30,H$2:H$51)+COUNTIF(H$2:H30,H30)-1 -> 3 | N30: =RANK(I30,I$2:I$51)+COUNTIF(I$2:I30,I30)-1 -> 19 | O30: =RANK(J30,J$2:J$51)+COUNTIF(J$2:J30,J30)-1 -> 29 | P30: =RANK(K30,K$2:K$51)+COUNTIF(K$2:K30,K30)-1 -> 13 | Q30: 6 | R30: 3 | S30: 6 | T30: 6 | U30: =COUNTIFS($C:$C,$C30,$K:$K,">"&$K30)+COUNTIFS($C$2:$C30,$C30,$K$2:$K30,$K30) -> 3
A31: 30 | B31: Iowa | C31: =VLOOKUP(B31,States!$D$2:$E$51,2,0) -> The Mid-West | D31: 3074186 | E31: 3046355 | F31: 2926324 | G31: 0.0097 | H31: 54.81 | I31: 18753596000 | J31: 3.543676047e+10 | K31: 0.046 | L31: =RANK(D31,D$2:D$51)+COUNTIF(D$2:D31,D31)-1 -> 30 | M31: =RANK(H31,H$2:H$51)+COUNTIF(H$2:H31,H31)-1 -> 36 | N31: =RANK(I31,I$2:I$51)+COUNTIF(I$2:I31,I31)-1 -> 33 | O31: =RANK(J31,J$2:J$51)+COUNTIF(J$2:J31,J31)-1 -> 30 | P31: =RANK(K31,K$2:K$51)+COUNTIF(K$2:K31,K31)-1 -> 43 | Q31: 8 | R31: 8 | S31: 10 | T31: 10 | U31: =COUNTIFS($C:$C,$C31,$K:$K,">"&$K31)+COUNTIFS($C$2:$C31,$C31,$K$2:$K31,$K31) -> 9
A32: 31 | B32: Mississippi | C32: =VLOOKUP(B32,States!$D$2:$E$51,2,0) -> The South | D32: 2984926 | E32: 2967297 | F32: 2844658 | G32: 0.0095 | H32: 63.5 | I32: 10458549000 | J32: 3.470610561e+10 | K32: 0.085 | L32: =RANK(D32,D$2:D$51)+COUNTIF(D$2:D32,D32)-1 -> 31 | M32: =RANK(H32,H$2:H$51)+COUNTIF(H$2:H32,H32)-1 -> 32 | N32: =RANK(I32,I$2:I$51)+COUNTIF(I$2:I32,I32)-1 -> 38 | O32: =RANK(J32,J$2:J$51)+COUNTIF(J$2:J32,J32)-1 -> 31 | P32: =RANK(K32,K$2:K$51)+COUNTIF(K$2:K32,K32)-1 -> 6 | Q32: 12 | R32: 12 | S32: 13 | T32: 13 | U32: =COUNTIFS($C:$C,$C32,$K:$K,">"&$K32)+COUNTIFS($C$2:$C32,$C32,$K$2:$K32,$K32) -> 1
A33: 32 | B33: Arkansas | C33: =VLOOKUP(B33,States!$D$2:$E$51,2,0) -> The South | D33: 2949131 | E33: 2915918 | F33: 2673400 | G33: 0.0093 | H33: 56.43 | I33: 25299832000 | J33: 3.397545076e+10 | K33: 0.075 | L33: =RANK(D33,D$2:D$51)+COUNTIF(D$2:D33,D33)-1 -> 32 | M33: =RANK(H33,H$2:H$51)+COUNTIF(H$2:H33,H33)-1 -> 34 | N33: =RANK(I33,I$2:I$51)+COUNTIF(I$2:I33,I33)-1 -> 26 | O33: =RANK(J33,J$2:J$51)+COUNTIF(J$2:J33,J33)-1 -> 32 | P33: =RANK(K33,K$2:K$51)+COUNTIF(K$2:K33,K33)-1 -> 20 | Q33: 13 | R33: 13 | S33: 9 | T33: 9 | U33: =COUNTIFS($C:$C,$C33,$K:$K,">"&$K33)+COUNTIFS($C$2:$C33,$C33,$K$2:$K33,$K33) -> 7
A34: 33 | B34: Kansas | C34: =VLOOKUP(B34,States!$D$2:$E$51,2,0) -> The Mid-West | D34: 2885905 | E34: 2853118 | F34: 2688418 | G34: 0.0091 | H34: 35.09 | I34: 21904615000 | J34: 3.32447959e+10 | K34: 0.056 | L34: =RANK(D34,D$2:D$51)+COUNTIF(D$2:D34,D34)-1 -> 33 | M34: =RANK(H34,H$2:H$51)+COUNTIF(H$2:H34,H34)-1 -> 40 | N34: =RANK(I34,I$2:I$51)+COUNTIF(I$2:I34,I34)-1 -> 29 | O34: =RANK(J34,J$2:J$51)+COUNTIF(J$2:J34,J34)-1 -> 33 | P34: =RANK(K34,K$2:K$51)+COUNTIF(K$2:K34,K34)-1 -> 38 | Q34: 9 | R34: 9 | S34: 8 | T34: 8 | U34: =COUNTIFS($C:$C,$C34,$K:$K,">"&$K34)+COUNTIFS($C$2:$C34,$C34,$K$2:$K34,$K34) -> 7
A35: 34 | B35: Utah | C35: =VLOOKUP(B35,States!$D$2:$E$51,2,0) -> The West | D35: 2855287 | E35: 2763885 | F35: 2233169 | G35: 0.0088 | H35: 34.3 | I35: 15642129000 | J35: 32148813620 | K35: 0.046 | L35: =RANK(D35,D$2:D$51)+COUNTIF(D$2:D35,D35)-1 -> 34 | M35: =RANK(H35,H$2:H$51)+COUNTIF(H$2:H35,H35)-1 -> 41 | N35: =RANK(I35,I$2:I$51)+COUNTIF(I$2:I35,I35)-1 -> 35 | O35: =RANK(J35,J$2:J$51)+COUNTIF(J$2:J35,J35)-1 -> 34 | P35: =RANK(K35,K$2:K$51)+COUNTIF(K$2:K35,K35)-1 -> 44 | Q35: 6 | R35: 7 | S35: 6 | T35: 6 | U35: =COUNTIFS($C:$C,$C35,$K:$K,">"&$K35)+COUNTIFS($C$2:$C35,$C35,$K$2:$K35,$K35) -> 11
A36: 35 | B36: Nevada | C36: =VLOOKUP(B36,States!$D$2:$E$51,2,0) -> The West | D36: 2758931 | E36: 2700551 | F36: 1998257 | G36: 0.0086 | H36: 24.8 | I36: 13727425000 | J36: 31418158765 | K36: 0.093 | L36: =RANK(D36,D$2:D$51)+COUNTIF(D$2:D36,D36)-1 -> 35 | M36: =RANK(H36,H$2:H$51)+COUNTIF(H$2:H36,H36)-1 -> 42 | N36: =RANK(I36,I$2:I$51)+COUNTIF(I$2:I36,I36)-1 -> 36 | O36: =RANK(J36,J$2:J$51)+COUNTIF(J$2:J36,J36)-1 -> 35 | P36: =RANK(K36,K$2:K$51)+COUNTIF(K$2:K36,K36)-1 -> 1 | Q36: 7 | R36: 8 | S36: 7 | T36: 7 | U36: =COUNTIFS($C:$C,$C36,$K:$K,">"&$K36)+COUNTIFS($C$2:$C36,$C36,$K$2:$K36,$K36) -> 1
A37: 36 | B37: New Mexico | C37: =VLOOKUP(B37,States!$D$2:$E$51,2,0) -> The West | D37: 2085538 | E37: 2059179 | F37: 1819046 | G37: 0.0066 | H37: 17.16 | I37: 7866206000 | J37: 24111610215 | K37: 0.066 | L37: =RANK(D37,D$2:D$51)+COUNTIF(D$2:D37,D37)-1 -> 36 | M37: =RANK(H37,H$2:H$51)+COUNTIF(H$2:H37,H37)-1 -> 45 | N37: =RANK(I37,I$2:I$51)+COUNTIF(I$2:I37,I37)-1 -> 40 | O37: =RANK(J37,J$2:J$51)+COUNTIF(J$2:J37,J37)-1 -> 36 | P37: =RANK(K37,K$2:K$51)+COUNTIF(K$2:K37,K37)-1 -> 29 | Q37: 8 | R37: 10 | S37: 8 | T37: 8 | U37: =COUNTIFS($C:$C,$C37,$K:$K,">"&$K37)+COUNTIFS($C$2:$C37,$C37,$K$2:$K37,$K37) -> 8
A38: 37 | B38: Nebraska | C38: =VLOOKUP(B38,States!$D$2:$E$51,2,0) -> The Mid-West | D38: 1855525 | E38: 1826341 | F38: 1711263 | G38: 0.0058 | H38: 23.97 | I38: 19795254000 | J38: 21188990795 | K38: 0.039 | L38: =RANK(D38,D$2:D$51)+COUNTIF(D$2:D38,D38)-1 -> 37 | M38: =RANK(H38,H$2:H$51)+COUNTIF(H$2:H38,H38)-1 -> 43 | N38: =RANK(I38,I$2:I$51)+COUNTIF(I$2:I38,I38)-1 -> 32 | O38: =RANK(J38,J$2:J$51)+COUNTIF(J$2:J38,J38)-1 -> 38 | P38: =RANK(K38,K$2:K$51)+COUNTIF(K$2:K38,K38)-1 -> 48 | Q38: 10 | R38: 10 | S38: 9 | T38: 9 | U38: =COUNTIFS($C:$C,$C38,$K:$K,">"&$K38)+COUNTIFS($C$2:$C38,$C38,$K$2:$K38,$K38) -> 10
A39: 38 | B39: West Virginia | C39: =VLOOKUP(B39,States!$D$2:$E$51,2,0) -> The South | D39: 1855413 | E39: 1852994 | F39: 1808344 | G39: 0.0059 | H39: 77.06 | I39: 6498502000 | J39: 2.155431822e+10 | K39: 0.062 | L39: =RANK(D39,D$2:D$51)+COUNTIF(D$2:D39,D39)-1 -> 38 | M39: =RANK(H39,H$2:H$51)+COUNTIF(H$2:H39,H39)-1 -> 29 | N39: =RANK(I39,I$2:I$51)+COUNTIF(I$2:I39,I39)-1 -> 43 | O39: =RANK(J39,J$2:J$51)+COUNTIF(J$2:J39,J39)-1 -> 37 | P39: =RANK(K39,K$2:K$51)+COUNTIF(K$2:K39,K39)-1 -> 36 | Q39: 14 | R39: 11 | S39: 14 | T39: 14 | U39: =COUNTIFS($C:$C,$C39,$K:$K,">"&$K39)+COUNTIFS($C$2:$C39,$C39,$K$2:$K39,$K39) -> 12
A40: 39 | B40: Idaho | C40: =VLOOKUP(B40,States!$D$2:$E$51,2,0) -> The West | D40: 1595728 | E40: 1567582 | F40: 1293953 | G40: 0.0051 | H40: 19.5 | I40: 7622490000 | J40: 1.86316988e+10 | K40: 0.067 | L40: =RANK(D40,D$2:D$51)+COUNTIF(D$2:D40,D40)-1 -> 39 | M40: =RANK(H40,H$2:H$51)+COUNTIF(H$2:H40,H40)-1 -> 44 | N40: =RANK(I40,I$2:I$51)+COUNTIF(I$2:I40,I40)-1 -> 41 | O40: =RANK(J40,J$2:J$51)+COUNTIF(J$2:J40,J40)-1 -> 39 | P40: =RANK(K40,K$2:K$51)+COUNTIF(K$2:K40,K40)-1 -> 27 | Q40: 9 | R40: 9 | S40: 9 | T40: 9 | U40: =COUNTIFS($C:$C,$C40,$K:$K,">"&$K40)+COUNTIFS($C$2:$C40,$C40,$K$2:$K40,$K40) -> 7
A41: 40 | B41: Hawaii | C41: =VLOOKUP(B41,States!$D$2:$E$51,2,0) -> The West | D41: 1392313 | E41: 1360301 | F41: 1211537 | G41: 0.0043 | H41: 216.8 | I41: 6511578000 | J41: 1.570907938e+10 | K41: 0.044 | L41: =RANK(D41,D$2:D$51)+COUNTIF(D$2:D41,D41)-1 -> 40 | M41: =RANK(H41,H$2:H$51)+COUNTIF(H$2:H41,H41)-1 -> 12 | N41: =RANK(I41,I$2:I$51)+COUNTIF(I$2:I41,I41)-1 -> 42 | O41: =RANK(J41,J$2:J$51)+COUNTIF(J$2:J41,J41)-1 -> 40 | P41: =RANK(K41,K$2:K$51)+COUNTIF(K$2:K41,K41)-1 -> 47 | Q41: 10 | R41: 2 | S41: 10 | T41: 10 | U41: =COUNTIFS($C:$C,$C41,$K:$K,">"&$K41)+COUNTIFS($C$2:$C41,$C41,$K$2:$K41,$K41) -> 13
A42: 41 | B42: Maine | C42: =VLOOKUP(B42,States!$D$2:$E$51,2,0) -> The North-East | D42: 1329192 | E42: 1328361 | F42: 1274923 | G42: 0.0042 | H42: 43.04 | I42: 6229189000 | J42: 15343751955 | K42: 0.067 | L42: =RANK(D42,D$2:D$51)+COUNTIF(D$2:D42,D42)-1 -> 41 | M42: =RANK(H42,H$2:H$51)+COUNTIF(H$2:H42,H42)-1 -> 38 | N42: =RANK(I42,I$2:I$51)+COUNTIF(I$2:I42,I42)-1 -> 44 | O42: =RANK(J42,J$2:J$51)+COUNTIF(J$2:J42,J42)-1 -> 41 | P42: =RANK(K42,K$2:K$51)+COUNTIF(K$2:K42,K42)-1 -> 28 | Q42: 7 | R42: 11 | S42: 10 | T42: 10 | U42: =COUNTIFS($C:$C,$C42,$K:$K,">"&$K42)+COUNTIFS($C$2:$C42,$C42,$K$2:$K42,$K42) -> 9
A43: 42 | B43: New Hampshire | C43: =VLOOKUP(B43,States!$D$2:$E$51,2,0) -> The North-East | D43: 1320718 | E43: 1316470 | F43: 1235786 | G43: 0.0042 | H43: 147 | I43: 8807691000 | J43: 15343751955 | K43: 0.051 | L43: =RANK(D43,D$2:D$51)+COUNTIF(D$2:D43,D43)-1 -> 42 | M43: =RANK(H43,H$2:H$51)+COUNTIF(H$2:H43,H43)-1 -> 20 | N43: =RANK(I43,I$2:I$51)+COUNTIF(I$2:I43,I43)-1 -> 39 | O43: =RANK(J43,J$2:J$51)+COUNTIF(J$2:J43,J43)-1 -> 42 | P43: =RANK(K43,K$2:K$51)+COUNTIF(K$2:K43,K43)-1 -> 41 | Q43: 8 | R43: 8 | S43: 9 | T43: 9 | U43: =COUNTIFS($C:$C,$C43,$K:$K,">"&$K43)+COUNTIFS($C$2:$C43,$C43,$K$2:$K43,$K43) -> 10
A44: 43 | B44: Rhode Island | C44: =VLOOKUP(B44,States!$D$2:$E$51,2,0) -> The North-East | D44: 1050292 | E44: 1052567 | F44: 1048319 | G44: 0.0034 | H44: 100.6 | I44: 10992338000 | J44: 12421132535 | K44: 0.092 | L44: =RANK(D44,D$2:D$51)+COUNTIF(D$2:D44,D44)-1 -> 43 | M44: =RANK(H44,H$2:H$51)+COUNTIF(H$2:H44,H44)-1 -> 25 | N44: =RANK(I44,I$2:I$51)+COUNTIF(I$2:I44,I44)-1 -> 37 | O44: =RANK(J44,J$2:J$51)+COUNTIF(J$2:J44,J44)-1 -> 43 | P44: =RANK(K44,K$2:K$51)+COUNTIF(K$2:K44,K44)-1 -> 2 | Q44: 9 | R44: 9 | S44: 8 | T44: 8 | U44: =COUNTIFS($C:$C,$C44,$K:$K,">"&$K44)+COUNTIFS($C$2:$C44,$C44,$K$2:$K44,$K44) -> 1
A45: 44 | B45: Montana | C45: =VLOOKUP(B45,States!$D$2:$E$51,2,0) -> The West | D45: 1005141 | E45: 989415 | F45: 902195 | G45: 0.0032 | H45: 6.858 | I45: 4383727000 | J45: 11690477680 | K45: 0.052 | L45: =RANK(D45,D$2:D$51)+COUNTIF(D$2:D45,D45)-1 -> 44 | M45: =RANK(H45,H$2:H$51)+COUNTIF(H$2:H45,H45)-1 -> 48 | N45: =RANK(I45,I$2:I$51)+COUNTIF(I$2:I45,I45)-1 -> 48 | O45: =RANK(J45,J$2:J$51)+COUNTIF(J$2:J45,J45)-1 -> 44 | P45: =RANK(K45,K$2:K$51)+COUNTIF(K$2:K45,K45)-1 -> 40 | Q45: 11 | R45: 11 | S45: 12 | T45: 12 | U45: =COUNTIFS($C:$C,$C45,$K:$K,">"&$K45)+COUNTIFS($C$2:$C45,$C45,$K$2:$K45,$K45) -> 10
A46: 45 | B46: Delaware | C46: =VLOOKUP(B46,States!$D$2:$E$51,2,0) -> The North-East | D46: 917092 | E46: 897934 | F46: 783600 | G46: 0.0029 | H46: 470.7 | I46: 21835412000 | J46: 1.05944954e+10 | K46: 0.068 | L46: =RANK(D46,D$2:D$51)+COUNTIF(D$2:D46,D46)-1 -> 45 | M46: =RANK(H46,H$2:H$51)+COUNTIF(H$2:H46,H46)-1 -> 5 | N46: =RANK(I46,I$2:I$51)+COUNTIF(I$2:I46,I46)-1 -> 30 | O46: =RANK(J46,J$2:J$51)+COUNTIF(J$2:J46,J46)-1 -> 45 | P46: =RANK(K46,K$2:K$51)+COUNTIF(K$2:K46,K46)-1 -> 24 | Q46: 10 | R46: 5 | S46: 7 | T46: 7 | U46: =COUNTIFS($C:$C,$C46,$K:$K,">"&$K46)+COUNTIFS($C$2:$C46,$C46,$K$2:$K46,$K46) -> 7
A47: 46 | B47: South Dakota | C47: =VLOOKUP(B47,States!$D$2:$E$51,2,0) -> The Mid-West | D47: 833354 | E47: 814180 | F47: 754844 | G47: 0.0026 | H47: 10.86 | I47: 5136249000 | J47: 9498513115 | K47: 0.037 | L47: =RANK(D47,D$2:D$51)+COUNTIF(D$2:D47,D47)-1 -> 46 | M47: =RANK(H47,H$2:H$51)+COUNTIF(H$2:H47,H47)-1 -> 46 | N47: =RANK(I47,I$2:I$51)+COUNTIF(I$2:I47,I47)-1 -> 46 | O47: =RANK(J47,J$2:J$51)+COUNTIF(J$2:J47,J47)-1 -> 46 | P47: =RANK(K47,K$2:K$51)+COUNTIF(K$2:K47,K47)-1 -> 49 | Q47: 11 | R47: 11 | S47: 12 | T47: 12 | U47: =COUNTIFS($C:$C,$C47,$K:$K,">"&$K47)+COUNTIFS($C$2:$C47,$C47,$K$2:$K47,$K47) -> 11
A48: 47 | B48: Alaska | C48: =VLOOKUP(B48,States!$D$2:$E$51,2,0) -> The West | D48: 731449 | E48: 710231 | F48: 626932 | G48: 0.0023 | H48: 1.264 | I48: 4898780000 | J48: 8402530832 | K48: 0.065 | L48: =RANK(D48,D$2:D$51)+COUNTIF(D$2:D48,D48)-1 -> 47 | M48: =RANK(H48,H$2:H$51)+COUNTIF(H$2:H48,H48)-1 -> 50 | N48: =RANK(I48,I$2:I$51)+COUNTIF(I$2:I48,I48)-1 -> 47 | O48: =RANK(J48,J$2:J$51)+COUNTIF(J$2:J48,J48)-1 -> 47 | P48: =RANK(K48,K$2:K$51)+COUNTIF(K$2:K48,K48)-1 -> 34 | Q48: 12 | R48: 13 | S48: 11 | T48: 11 | U48: =COUNTIFS($C:$C,$C48,$K:$K,">"&$K48)+COUNTIFS($C$2:$C48,$C48,$K$2:$K48,$K48) -> 9
A49: 48 | B49: North Dakota | C49: =VLOOKUP(B49,States!$D$2:$E$51,2,0) -> The Mid-West | D49: 699628 | E49: 672591 | F49: 642200 | G49: 0.0021 | H49: 9.916 | I49: 5664860000 | J49: 7671875978 | K49: 0.027 | L49: =RANK(D49,D$2:D$51)+COUNTIF(D$2:D49,D49)-1 -> 48 | M49: =RANK(H49,H$2:H$51)+COUNTIF(H$2:H49,H49)-1 -> 47 | N49: =RANK(I49,I$2:I$51)+COUNTIF(I$2:I49,I49)-1 -> 45 | O49: =RANK(J49,J$2:J$51)+COUNTIF(J$2:J49,J49)-1 -> 48 | P49: =RANK(K49,K$2:K$51)+COUNTIF(K$2:K49,K49)-1 -> 50 | Q49: 12 | R49: 12 | S49: 11 | T49: 11 | U49: =COUNTIFS($C:$C,$C49,$K:$K,">"&$K49)+COUNTIFS($C$2:$C49,$C49,$K$2:$K49,$K49) -> 12
A50: 49 | B50: Vermont | C50: =VLOOKUP(B50,States!$D$2:$E$51,2,0) -> The North-East | D50: 626011 | E50: 625741 | F50: 608827 | G50: 0.002 | H50: 67.73 | I50: 3524887000 | J50: 7306548550 | K50: 0.045 | L50: =RANK(D50,D$2:D$51)+COUNTIF(D$2:D50,D50)-1 -> 49 | M50: =RANK(H50,H$2:H$51)+COUNTIF(H$2:H50,H50)-1 -> 30 | N50: =RANK(I50,I$2:I$51)+COUNTIF(I$2:I50,I50)-1 -> 50 | O50: =RANK(J50,J$2:J$51)+COUNTIF(J$2:J50,J50)-1 -> 49 | P50: =RANK(K50,K$2:K$51)+COUNTIF(K$2:K50,K50)-1 -> 46 | Q50: 11 | R50: 10 | S50: 11 | T50: 11 | U50: =COUNTIFS($C:$C,$C50,$K:$K,">"&$K50)+COUNTIFS($C$2:$C50,$C50,$K$2:$K50,$K50) -> 11
A51: 50 | B51: Wyoming | C51: =VLOOKUP(B51,States!$D$2:$E$51,2,0) -> The West | D51: 576412 | E51: 563626 | F51: 493782 | G51: 0.0018 | H51: 5.851 | I51: 3828379000 | J51: 6575893695 | K51: 0.046 | L51: =RANK(D51,D$2:D$51)+COUNTIF(D$2:D51,D51)-1 -> 50 | M51: =RANK(H51,H$2:H$51)+COUNTIF(H$2:H51,H51)-1 -> 49 | N51: =RANK(I51,I$2:I$51)+COUNTIF(I$2:I51,I51)-1 -> 49 | O51: =RANK(J51,J$2:J$51)+COUNTIF(J$2:J51,J51)-1 -> 50 | P51: =RANK(K51,K$2:K$51)+COUNTIF(K$2:K51,K51)-1 -> 45 | Q51: 13 | R51: 12 | S51: 13 | T51: 13 | U51: =COUNTIFS($C:$C,$C51,$K:$K,">"&$K51)+COUNTIFS($C$2:$C51,$C51,$K$2:$K51,$K51) -> 12

Sheet Calcs
B1: Population | F1: Revenue | J1: Revenue | N1: Expenses | R1: Unemployment
A2: Top 10 | B2: Region | C2: State | D2: Population 12 | F2: Region | G2: State | H2: Pop Density | J2: Region | K2: State | L2: Revenue | N2: Region | O2: State | P2: Expenses | R2: Region | S2: State | T2: Unemployment
A3: 1 | B3: The West | C3: =INDEX(Data!$B$2:$B$51,MATCH(1,INDEX((Data!$C$2:$C$51=B3)*(Data!$Q$2:$Q$51=A3),0),0)) -> California | D3: =SUMPRODUCT((Data!$B$2:$B$51=C3)*(Data!$C$2:$C$51=B3)*(Data!$D$2:$D$51)) -> 38041430 | F3: The West | G3: =INDEX(Data!$B$2:$B$51,MATCH(1,INDEX((Data!$C$2:$C$51=F3)*(Data!$R$2:$R$51=A3),0),0)) -> California | H3: =SUMPRODUCT((Data!$B$2:$B$51=G3)*(Data!$C$2:$C$51=F3)*(Data!$H$2:$H$51)) -> 244.2 | J3: The West | K3: =INDEX(Data!$B$2:$B$51,MATCH(1,INDEX((Data!$C$2:$C$51=J3)*(Data!$S$2:$S$51=A3),0),0)) -> California | L3: =SUMPRODUCT((Data!$B$2:$B$51=K3)*(Data!$C$2:$C$51=J3)*(Data!$I$2:$I$51)) -> 292563574000 | N3: The West | O3: =INDEX(Data!$B$2:$B$51,MATCH(1,INDEX((Data!$C$2:$C$51=N3)*(Data!$T$2:$T$51=A3),0),0)) -> California | P3: =SUMPRODUCT((Data!$B$2:$B$51=O3)*(Data!$C$2:$C$51=N3)*(Data!$J$2:$J$51)) -> 4.359148053e+11 | R3: The West | S3: =INDEX(Data!$B$2:$B$51,MATCH(1,INDEX((Data!$C$2:$C$51=R3)*(Data!$U$2:$U$51=A3),0),0)) -> Nevada | T3: =SUMPRODUCT((Data!$B$2:$B$51=S3)*(Data!$C$2:$C$51=R3)*(Data!$K$2:$K$51)) -> 0.093
A4: 2 | B4: The West | C4: =INDEX(Data!$B$2:$B$51,MATCH(1,INDEX((Data!$C$2:$C$51=B4)*(Data!$Q$2:$Q$51=A4),0),0)) -> Washington | D4: =SUMPRODUCT((Data!$B$2:$B$51=C4)*(Data!$C$2:$C$51=B4)*(Data!$D$2:$D$51)) -> 6897012 | F4: The West | G4: =INDEX(Data!$B$2:$B$51,MATCH(1,INDEX((Data!$C$2:$C$51=F4)*(Data!$R$2:$R$51=A4),0),0)) -> Hawaii | H4: =SUMPRODUCT((Data!$B$2:$B$51=G4)*(Data!$C$2:$C$51=F4)*(Data!$H$2:$H$51)) -> 216.8 | J4: The West | K4: =INDEX(Data!$B$2:$B$51,MATCH(1,INDEX((Data!$C$2:$C$51=J4)*(Data!$S$2:$S$51=A4),0),0)) -> Washington | L4: =SUMPRODUCT((Data!$B$2:$B$51=K4)*(Data!$C$2:$C$51=J4)*(Data!$I$2:$I$51)) -> 52443862000 | N4: The West | O4: =INDEX(Data!$B$2:$B$51,MATCH(1,INDEX((Data!$C$2:$C$51=N4)*(Data!$T$2:$T$51=A4),0),0)) -> Washington | P4: =SUMPRODUCT((Data!$B$2:$B$51=O4)*(Data!$C$2:$C$51=N4)*(Data!$J$2:$J$51)) -> 7.854539691e+10 | R4: The West | S4: =INDEX(Data!$B$2:$B$51,MATCH(1,INDEX((Data!$C$2:$C$51=R4)*(Data!$U$2:$U$51=A4),0),0)) -> California | T4: =SUMPRODUCT((Data!$B$2:$B$51=S4)*(Data!$C$2:$C$51=R4)*(Data!$K$2:$K$51)) -> 0.087
A5: 3 | B5: The West | C5: =INDEX(Data!$B$2:$B$51,MATCH(1,INDEX((Data!$C$2:$C$51=B5)*(Data!$Q$2:$Q$51=A5),0),0)) -> Arizona | D5: =SUMPRODUCT((Data!$B$2:$B$51=C5)*(Data!$C$2:$C$51=B5)*(Data!$D$2:$D$51)) -> 6553255 | F5: The West | G5: =INDEX(Data!$B$2:$B$51,MATCH(1,INDEX((Data!$C$2:$C$51=F5)*(Data!$R$2:$R$51=A5),0),0)) -> Washington | H5: =SUMPRODUCT((Data!$B$2:$B$51=G5)*(Data!$C$2:$C$51=F5)*(Data!$H$2:$H$51)) -> 102.6 | J5: The West | K5: =INDEX(Data!$B$2:$B$51,MATCH(1,INDEX((Data!$C$2:$C$51=J5)*(Data!$S$2:$S$51=A5),0),0)) -> Colorado | L5: =SUMPRODUCT((Data!$B$2:$B$51=K5)*(Data!$C$2:$C$51=J5)*(Data!$I$2:$I$51)) -> 41252701000 | N5: The West | O5: =INDEX(Data!$B$2:$B$51,MATCH(1,INDEX((Data!$C$2:$C$51=N5)*(Data!$T$2:$T$51=A5),0),0)) -> Colorado | P5: =SUMPRODUCT((Data!$B$2:$B$51=O5)*(Data!$C$2:$C$51=N5)*(Data!$J$2:$J$51)) -> 5.881771583e+10 | R5: The West | S5: =INDEX(Data!$B$2:$B$51,MATCH(1,INDEX((Data!$C$2:$C$51=R5)*(Data!$U$2:$U$51=A5),0),0)) -> Arizona | T5: =SUMPRODUCT((Data!$B$2:$B$51=S5)*(Data!$C$2:$C$51=R5)*(Data!$K$2:$K$51)) -> 0.082
A6: 4 | B6: The West | C6: =INDEX(Data!$B$2:$B$51,MATCH(1,INDEX((Data!$C$2:$C$51=B6)*(Data!$Q$2:$Q$51=A6),0),0)) -> Colorado | D6: =SUMPRODUCT((Data!$B$2:$B$51=C6)*(Data!$C$2:$C$51=B6)*(Data!$D$2:$D$51)) -> 5187582 | F6: The West | G6: =INDEX(Data!$B$2:$B$51,MATCH(1,INDEX((Data!$C$2:$C$51=F6)*(Data!$R$2:$R$51=A6),0),0)) -> Arizona | H6: =SUMPRODUCT((Data!$B$2:$B$51=G6)*(Data!$C$2:$C$51=F6)*(Data!$H$2:$H$51)) -> 57.05 | J6: The West | K6: =INDEX(Data!$B$2:$B$51,MATCH(1,INDEX((Data!$C$2:$C$51=J6)*(Data!$S$2:$S$51=A6),0),0)) -> Arizona | L6: =SUMPRODUCT((Data!$B$2:$B$51=K6)*(Data!$C$2:$C$51=J6)*(Data!$I$2:$I$51)) -> 34850436000 | N6: The West | O6: =INDEX(Data!$B$2:$B$51,MATCH(1,INDEX((Data!$C$2:$C$51=N6)*(Data!$T$2:$T$51=A6),0),0)) -> Arizona | P6: =SUMPRODUCT((Data!$B$2:$B$51=O6)*(Data!$C$2:$C$51=N6)*(Data!$J$2:$J$51)) -> 74526795210 | R6: The West | S6: =INDEX(Data!$B$2:$B$51,MATCH(1,INDEX((Data!$C$2:$C$51=R6)*(Data!$U$2:$U$51=A6),0),0)) -> Oregon | T6: =SUMPRODUCT((Data!$B$2:$B$51=S6)*(Data!$C$2:$C$51=R6)*(Data!$K$2:$K$51)) -> 0.077
A7: 5 | B7: The West | C7: =INDEX(Data!$B$2:$B$51,MATCH(1,INDEX((Data!$C$2:$C$51=B7)*(Data!$Q$2:$Q$51=A7),0),0)) -> Oregon | D7: =SUMPRODUCT((Data!$B$2:$B$51=C7)*(Data!$C$2:$C$51=B7)*(Data!$D$2:$D$51)) -> 3899353 | F7: The West | G7: =INDEX(Data!$B$2:$B$51,MATCH(1,INDEX((Data!$C$2:$C$51=F7)*(Data!$R$2:$R$51=A7),0),0)) -> Colorado | H7: =SUMPRODUCT((Data!$B$2:$B$51=G7)*(Data!$C$2:$C$51=F7)*(Data!$H$2:$H$51)) -> 49.33 | J7: The West | K7: =INDEX(Data!$B$2:$B$51,MATCH(1,INDEX((Data!$C$2:$C$51=J7)*(Data!$S$2:$S$51=A7),0),0)) -> Oregon | L7: =SUMPRODUCT((Data!$B$2:$B$51=K7)*(Data!$C$2:$C$51=J7)*(Data!$I$2:$I$51)) -> 22716602000 | N7: The West | O7: =INDEX(Data!$B$2:$B$51,MATCH(1,INDEX((Data!$C$2:$C$51=N7)*(Data!$T$2:$T$51=A7),0),0)) -> Oregon | P7: =SUMPRODUCT((Data!$B$2:$B$51=O7)*(Data!$C$2:$C$51=N7)*(Data!$J$2:$J$51)) -> 44569946155 | R7: The West | S7: =INDEX(Data!$B$2:$B$51,MATCH(1,INDEX((Data!$C$2:$C$51=R7)*(Data!$U$2:$U$51=A7),0),0)) -> Washington | T7: =SUMPRODUCT((Data!$B$2:$B$51=S7)*(Data!$C$2:$C$51=R7)*(Data!$K$2:$K$51)) -> 0.07
A8: 6 | B8: The West | C8: =INDEX(Data!$B$2:$B$51,MATCH(1,INDEX((Data!$C$2:$C$51=B8)*(Data!$Q$2:$Q$51=A8),0),0)) -> Utah | D8: =SUMPRODUCT((Data!$B$2:$B$51=C8)*(Data!$C$2:$C$51=B8)*(Data!$D$2:$D$51)) -> 2855287 | F8: The West | G8: =INDEX(Data!$B$2:$B$51,MATCH(1,INDEX((Data!$C$2:$C$51=F8)*(Data!$R$2:$R$51=A8),0),0)) -> Oregon | H8: =SUMPRODUCT((Data!$B$2:$B$51=G8)*(Data!$C$2:$C$51=F8)*(Data!$H$2:$H$51)) -> 40.33 | J8: The West | K8: =INDEX(Data!$B$2:$B$51,MATCH(1,INDEX((Data!$C$2:$C$51=J8)*(Data!$S$2:$S$51=A8),0),0)) -> Utah | L8: =SUMPRODUCT((Data!$B$2:$B$51=K8)*(Data!$C$2:$C$51=J8)*(Data!$I$2:$I$51)) -> 15642129000 | N8: The West | O8: =INDEX(Data!$B$2:$B$51,MATCH(1,INDEX((Data!$C$2:$C$51=N8)*(Data!$T$2:$T$51=A8),0),0)) -> Utah | P8: =SUMPRODUCT((Data!$B$2:$B$51=O8)*(Data!$C$2:$C$51=N8)*(Data!$J$2:$J$51)) -> 32148813620 | R8: The West | S8: =INDEX(Data!$B$2:$B$51,MATCH(1,INDEX((Data!$C$2:$C$51=R8)*(Data!$U$2:$U$51=A8),0),0)) -> Colorado | T8: =SUMPRODUCT((Data!$B$2:$B$51=S8)*(Data!$C$2:$C$51=R8)*(Data!$K$2:$K$51)) -> 0.068
A9: 7 | B9: The West | C9: =INDEX(Data!$B$2:$B$51,MATCH(1,INDEX((Data!$C$2:$C$51=B9)*(Data!$Q$2:$Q$51=A9),0),0)) -> Nevada | D9: =SUMPRODUCT((Data!$B$2:$B$51=C9)*(Data!$C$2:$C$51=B9)*(Data!$D$2:$D$51)) -> 2758931 | F9: The West | G9: =INDEX(Data!$B$2:$B$51,MATCH(1,INDEX((Data!$C$2:$C$51=F9)*(Data!$R$2:$R$51=A9),0),0)) -> Utah | H9: =SUMPRODUCT((Data!$B$2:$B$51=G9)*(Data!$C$2:$C$51=F9)*(Data!$H$2:$H$51)) -> 34.3 | J9: The West | K9: =INDEX(Data!$B$2:$B$51,MATCH(1,INDEX((Data!$C$2:$C$51=J9)*(Data!$S$2:$S$51=A9),0),0)) -> Nevada | L9: =SUMPRODUCT((Data!$B$2:$B$51=K9)*(Data!$C$2:$C$51=J9)*(Data!$I$2:$I$51)) -> 13727425000 | N9: The West | O9: =INDEX(Data!$B$2:$B$51,MATCH(1,INDEX((Data!$C$2:$C$51=N9)*(Data!$T$2:$T$51=A9),0),0)) -> Nevada | P9: =SUMPRODUCT((Data!$B$2:$B$51=O9)*(Data!$C$2:$C$51=N9)*(Data!$J$2:$J$51)) -> 31418158765 | R9: The West | S9: =INDEX(Data!$B$2:$B$51,MATCH(1,INDEX((Data!$C$2:$C$51=R9)*(Data!$U$2:$U$51=A9),0),0)) -> Idaho | T9: =SUMPRODUCT((Data!$B$2:$B$51=S9)*(Data!$C$2:$C$51=R9)*(Data!$K$2:$K$51)) -> 0.067
A10: 8 | B10: The West | C10: =INDEX(Data!$B$2:$B$51,MATCH(1,INDEX((Data!$C$2:$C$51=B10)*(Data!$Q$2:$Q$51=A10),0),0)) -> New Mexico | D10: =SUMPRODUCT((Data!$B$2:$B$51=C10)*(Data!$C$2:$C$51=B10)*(Data!$D$2:$D$51)) -> 2085538 | F10: The West | G10: =INDEX(Data!$B$2:$B$51,MATCH(1,INDEX((Data!$C$2:$C$51=F10)*(Data!$R$2:$R$51=A10),0),0)) -> Nevada | H10: =SUMPRODUCT((Data!$B$2:$B$51=G10)*(Data!$C$2:$C$51=F10)*(Data!$H$2:$H$51)) -> 24.8 | J10: The West | K10: =INDEX(Data!$B$2:$B$51,MATCH(1,INDEX((Data!$C$2:$C$51=J10)*(Data!$S$2:$S$51=A10),0),0)) -> New Mexico | L10: =SUMPRODUCT((Data!$B$2:$B$51=K10)*(Data!$C$2:$C$51=J10)*(Data!$I$2:$I$51)) -> 7866206000 | N10: The West | O10: =INDEX(Data!$B$2:$B$51,MATCH(1,INDEX((Data!$C$2:$C$51=N10)*(Data!$T$2:$T$51=A10),0),0)) -> New Mexico | P10: =SUMPRODUCT((Data!$B$2:$B$51=O10)*(Data!$C$2:$C$51=N10)*(Data!$J$2:$J$51)) -> 24111610215 | R10: The West | S10: =INDEX(Data!$B$2:$B$51,MATCH(1,INDEX((Data!$C$2:$C$51=R10)*(Data!$U$2:$U$51=A10),0),0)) -> New Mexico | T10: =SUMPRODUCT((Data!$B$2:$B$51=S10)*(Data!$C$2:$C$51=R10)*(Data!$K$2:$K$51)) -> 0.066
A11: 9 | B11: The West | C11: =INDEX(Data!$B$2:$B$51,MATCH(1,INDEX((Data!$C$2:$C$51=B11)*(Data!$Q$2:$Q$51=A11),0),0)) -> Idaho | D11: =SUMPRODUCT((Data!$B$2:$B$51=C11)*(Data!$C$2:$C$51=B11)*(Data!$D$2:$D$51)) -> 1595728 | F11: The West | G11: =INDEX(Data!$B$2:$B$51,MATCH(1,INDEX((Data!$C$2:$C$51=F11)*(Data!$R$2:$R$51=A11),0),0)) -> Idaho | H11: =SUMPRODUCT((Data!$B$2:$B$51=G11)*(Data!$C$2:$C$51=F11)*(Data!$H$2:$H$51)) -> 19.5 | J11: The West | K11: =INDEX(Data!$B$2:$B$51,MATCH(1,INDEX((Data!$C$2:$C$51=J11)*(Data!$S$2:$S$51=A11),0),0)) -> Idaho | L11: =SUMPRODUCT((Data!$B$2:$B$51=K11)*(Data!$C$2:$C$51=J11)*(Data!$I$2:$I$51)) -> 7622490000 | N11: The West | O11: =INDEX(Data!$B$2:$B$51,MATCH(1,INDEX((Data!$C$2:$C$51=N11)*(Data!$T$2:$T$51=A11),0),0)) -> Idaho | P11: =SUMPRODUCT((Data!$B$2:$B$51=O11)*(Data!$C$2:$C$51=N11)*(Data!$J$2:$J$51)) -> 1.86316988e+10 | R11: The West | S11: =INDEX(Data!$B$2:$B$51,MATCH(1,INDEX((Data!$C$2:$C$51=R11)*(Data!$U$2:$U$51=A11),0),0)) -> Alaska | T11: =SUMPRODUCT((Data!$B$2:$B$51=S11)*(Data!$C$2:$C$51=R11)*(Data!$K$2:$K$51)) -> 0.065
A12: 10 | B12: The West | C12: =INDEX(Data!$B$2:$B$51,MATCH(1,INDEX((Data!$C$2:$C$51=B12)*(Data!$Q$2:$Q$51=A12),0),0)) -> Hawaii | D12: =SUMPRODUCT((Data!$B$2:$B$51=C12)*(Data!$C$2:$C$51=B12)*(Data!$D$2:$D$51)) -> 1392313 | F12: The West | G12: =INDEX(Data!$B$2:$B$51,MATCH(1,INDEX((Data!$C$2:$C$51=F12)*(Data!$R$2:$R$51=A12),0),0)) -> New Mexico | H12: =SUMPRODUCT((Data!$B$2:$B$51=G12)*(Data!$C$2:$C$51=F12)*(Data!$H$2:$H$51)) -> 17.16 | J12: The West | K12: =INDEX(Data!$B$2:$B$51,MATCH(1,INDEX((Data!$C$2:$C$51=J12)*(Data!$S$2:$S$51=A12),0),0)) -> Hawaii | L12: =SUMPRODUCT((Data!$B$2:$B$51=K12)*(Data!$C$2:$C$51=J12)*(Data!$I$2:$I$51)) -> 6511578000 | N12: The West | O12: =INDEX(Data!$B$2:$B$51,MATCH(1,INDEX((Data!$C$2:$C$51=N12)*(Data!$T$2:$T$51=A12),0),0)) -> Hawaii | P12: =SUMPRODUCT((Data!$B$2:$B$51=O12)*(Data!$C$2:$C$51=N12)*(Data!$J$2:$J$51)) -> 1.570907938e+10 | R12: The West | S12: =INDEX(Data!$B$2:$B$51,MATCH(1,INDEX((Data!$C$2:$C$51=R12)*(Data!$U$2:$U$51=A12),0),0)) -> Montana | T12: =SUMPRODUCT((Data!$B$2:$B$51=S12)*(Data!$C$2:$C$51=R12)*(Data!$K$2:$K$51)) -> 0.052
A13: 1 | B13: The South | C13: =INDEX(Data!$B$2:$B$51,MATCH(1,INDEX((Data!$C$2:$C$51=B13)*(Data!$Q$2:$Q$51=A13),0),0)) -> Texas | D13: =SUMPRODUCT((Data!$B$2:$B$51=C13)*(Data!$C$2:$C$51=B13)*(Data!$D$2:$D$51)) -> 26059203 | F13: The South | G13: =INDEX(Data!$B$2:$B$51,MATCH(1,INDEX((Data!$C$2:$C$51=F13)*(Data!$R$2:$R$51=A13),0),0)) -> Florida | H13: =SUMPRODUCT((Data!$B$2:$B$51=G13)*(Data!$C$2:$C$51=F13)*(Data!$H$2:$H$51)) -> 360.2 | J13: The South | K13: =INDEX(Data!$B$2:$B$51,MATCH(1,INDEX((Data!$C$2:$C$51=J13)*(Data!$S$2:$S$51=A13),0),0)) -> Texas | L13: =SUMPRODUCT((Data!$B$2:$B$51=K13)*(Data!$C$2:$C$51=J13)*(Data!$I$2:$I$51)) -> 219459878000 | N13: The South | O13: =INDEX(Data!$B$2:$B$51,MATCH(1,INDEX((Data!$C$2:$C$51=N13)*(Data!$T$2:$T$51=A13),0),0)) -> Texas | P13: =SUMPRODUCT((Data!$B$2:$B$51=O13)*(Data!$C$2:$C$51=N13)*(Data!$J$2:$J$51)) -> 293723251710 | R13: The South | S13: =INDEX(Data!$B$2:$B$51,MATCH(1,INDEX((Data!$C$2:$C$51=R13)*(Data!$U$2:$U$51=A13),0),0)) -> Mississippi | T13: =SUMPRODUCT((Data!$B$2:$B$51=S13)*(Data!$C$2:$C$51=R13)*(Data!$K$2:$K$51)) -> 0.085
A14: 2 | B14: The South | C14: =INDEX(Data!$B$2:$B$51,MATCH(1,INDEX((Data!$C$2:$C$51=B14)*(Data!$Q$2:$Q$51=A14),0),0)) -> Florida | D14: =SUMPRODUCT((Data!$B$2:$B$51=C14)*(Data!$C$2:$C$51=B14)*(Data!$D$2:$D$51)) -> 19317568 | F14: The South | G14: =INDEX(Data!$B$2:$B$51,MATCH(1,INDEX((Data!$C$2:$C$51=F14)*(Data!$R$2:$R$51=A14),0),0)) -> Virginia | H14: =SUMPRODUCT((Data!$B$2:$B$51=G14)*(Data!$C$2:$C$51=F14)*(Data!$H$2:$H$51)) -> 207.3 | J14: The South | K14: =INDEX(Data!$B$2:$B$51,MATCH(1,INDEX((Data!$C$2:$C$51=J14)*(Data!$S$2:$S$51=A14),0),0)) -> Florida | L14: =SUMPRODUCT((Data!$B$2:$B$51=K14)*(Data!$C$2:$C$51=J14)*(Data!$I$2:$I$51)) -> 122249635000 | N14: The South | O14: =INDEX(Data!$B$2:$B$51,MATCH(1,INDEX((Data!$C$2:$C$51=N14)*(Data!$T$2:$T$51=A14),0),0)) -> Florida | P14: =SUMPRODUCT((Data!$B$2:$B$51=O14)*(Data!$C$2:$C$51=N14)*(Data!$J$2:$J$51)) -> 2.195617839e+11 | R14: The South | S14: =INDEX(Data!$B$2:$B$51,MATCH(1,INDEX((Data!$C$2:$C$51=R14)*(Data!$U$2:$U$51=A14),0),0)) -> Tennessee | T14: =SUMPRODUCT((Data!$B$2:$B$51=S14)*(Data!$C$2:$C$51=R14)*(Data!$K$2:$K$51)) -> 0.084
A15: 3 | B15: The South | C15: =INDEX(Data!$B$2:$B$51,MATCH(1,INDEX((Data!$C$2:$C$51=B15)*(Data!$Q$2:$Q$51=A15),0),0)) -> Georgia | D15: =SUMPRODUCT((Data!$B$2:$B$51=C15)*(Data!$C$2:$C$51=B15)*(Data!$D$2:$D$51)) -> 9919945 | F15: The South | G15: =INDEX(Data!$B$2:$B$51,MATCH(1,INDEX((Data!$C$2:$C$51=F15)*(Data!$R$2:$R$51=A15),0),0)) -> North Carolina | H15: =SUMPRODUCT((Data!$B$2:$B$51=G15)*(Data!$C$2:$C$51=F15)*(Data!$H$2:$H$51)) -> 200.6 | J15: The South | K15: =INDEX(Data!$B$2:$B$51,MATCH(1,INDEX((Data!$C$2:$C$51=J15)*(Data!$S$2:$S$51=A15),0),0)) -> Georgia | L15: =SUMPRODUCT((Data!$B$2:$B$51=K15)*(Data!$C$2:$C$51=J15)*(Data!$I$2:$I$51)) -> 65498308000 | N15: The South | O15: =INDEX(Data!$B$2:$B$51,MATCH(1,INDEX((Data!$C$2:$C$51=N15)*(Data!$T$2:$T$51=A15),0),0)) -> Georgia | P15: =SUMPRODUCT((Data!$B$2:$B$51=O15)*(Data!$C$2:$C$51=N15)*(Data!$J$2:$J$51)) -> 113251502525 | R15: The South | S15: =INDEX(Data!$B$2:$B$51,MATCH(1,INDEX((Data!$C$2:$C$51=R15)*(Data!$U$2:$U$51=A15),0),0)) -> Kentucky | T15: =SUMPRODUCT((Data!$B$2:$B$51=S15)*(Data!$C$2:$C$51=R15)*(Data!$K$2:$K$51)) -> 0.084
A16: 4 | B16: The South | C16: =INDEX(Data!$B$2:$B$51,MATCH(1,INDEX((Data!$C$2:$C$51=B16)*(Data!$Q$2:$Q$51=A16),0),0)) -> North Carolina | D16: =SUMPRODUCT((Data!$B$2:$B$51=C16)*(Data!$C$2:$C$51=B16)*(Data!$D$2:$D$51)) -> 9752073 | F16: The South | G16: =INDEX(Data!$B$2:$B$51,MATCH(1,INDEX((Data!$C$2:$C$51=F16)*(Data!$R$2:$R$51=A16),0),0)) -> Georgia | H16: =SUMPRODUCT((Data!$B$2:$B$51=G16)*(Data!$C$2:$C$51=F16)*(Data!$H$2:$H$51)) -> 172.5 | J16: The South | K16: =INDEX(Data!$B$2:$B$51,MATCH(1,INDEX((Data!$C$2:$C$51=J16)*(Data!$S$2:$S$51=A16),0),0)) -> Virginia | L16: =SUMPRODUCT((Data!$B$2:$B$51=K16)*(Data!$C$2:$C$51=J16)*(Data!$I$2:$I$51)) -> 64297400000 | N16: The South | O16: =INDEX(Data!$B$2:$B$51,MATCH(1,INDEX((Data!$C$2:$C$51=N16)*(Data!$T$2:$T$51=A16),0),0)) -> Virginia | P16: =SUMPRODUCT((Data!$B$2:$B$51=O16)*(Data!$C$2:$C$51=N16)*(Data!$J$2:$J$51)) -> 93523821440 | R16: The South | S16: =INDEX(Data!$B$2:$B$51,MATCH(1,INDEX((Data!$C$2:$C$51=R16)*(Data!$U$2:$U$51=A16),0),0)) -> Georgia | T16: =SUMPRODUCT((Data!$B$2:$B$51=S16)*(Data!$C$2:$C$51=R16)*(Data!$K$2:$K$51)) -> 0.081
A17: 5 | B17: The South | C17: =INDEX(Data!$B$2:$B$51,MATCH(1,INDEX((Data!$C$2:$C$51=B17)*(Data!$Q$2:$Q$51=A17),0),0)) -> Virginia | D17: =SUMPRODUCT((Data!$B$2:$B$51=C17)*(Data!$C$2:$C$51=B17)*(Data!$D$2:$D$51)) -> 8185867 | F17: The South | G17: =INDEX(Data!$B$2:$B$51,MATCH(1,INDEX((Data!$C$2:$C$51=F17)*(Data!$R$2:$R$51=A17),0),0)) -> South Carolina | H17: =SUMPRODUCT((Data!$B$2:$B$51=G17)*(Data!$C$2:$C$51=F17)*(Data!$H$2:$H$51)) -> 157.1 | J17: The South | K17: =INDEX(Data!$B$2:$B$51,MATCH(1,INDEX((Data!$C$2:$C$51=J17)*(Data!$S$2:$S$51=A17),0),0)) -> North Carolina | L17: =SUMPRODUCT((Data!$B$2:$B$51=K17)*(Data!$C$2:$C$51=J17)*(Data!$I$2:$I$51)) -> 61600064000 | N17: The South | O17: =INDEX(Data!$B$2:$B$51,MATCH(1,INDEX((Data!$C$2:$C$51=N17)*(Data!$T$2:$T$51=A17),0),0)) -> North Carolina | P17: =SUMPRODUCT((Data!$B$2:$B$51=O17)*(Data!$C$2:$C$51=N17)*(Data!$J$2:$J$51)) -> 1.114248654e+11 | R17: The South | S17: =INDEX(Data!$B$2:$B$51,MATCH(1,INDEX((Data!$C$2:$C$51=R17)*(Data!$U$2:$U$51=A17),0),0)) -> North Carolina | T17: =SUMPRODUCT((Data!$B$2:$B$51=S17)*(Data!$C$2:$C$51=R17)*(Data!$K$2:$K$51)) -> 0.08
A18: 6 | B18: The South | C18: =INDEX(Data!$B$2:$B$51,MATCH(1,INDEX((Data!$C$2:$C$51=B18)*(Data!$Q$2:$Q$51=A18),0),0)) -> Tennessee | D18: =SUMPRODUCT((Data!$B$2:$B$51=C18)*(Data!$C$2:$C$51=B18)*(Data!$D$2:$D$51)) -> 6456243 | F18: The South | G18: =INDEX(Data!$B$2:$B$51,MATCH(1,INDEX((Data!$C$2:$C$51=F18)*(Data!$R$2:$R$51=A18),0),0)) -> Tennessee | H18: =SUMPRODUCT((Data!$B$2:$B$51=G18)*(Data!$C$2:$C$51=F18)*(Data!$H$2:$H$51)) -> 156.6 | J18: The South | K18: =INDEX(Data!$B$2:$B$51,MATCH(1,INDEX((Data!$C$2:$C$51=J18)*(Data!$S$2:$S$51=A18),0),0)) -> Tennessee | L18: =SUMPRODUCT((Data!$B$2:$B$51=K18)*(Data!$C$2:$C$51=J18)*(Data!$I$2:$I$51)) -> 47010303000 | N18: The South | O18: =INDEX(Data!$B$2:$B$51,MATCH(1,INDEX((Data!$C$2:$C$51=N18)*(Data!$T$2:$T$51=A18),0),0)) -> Tennessee | P18: =SUMPRODUCT((Data!$B$2:$B$51=O18)*(Data!$C$2:$C$51=N18)*(Data!$J$2:$J$51)) -> 7.416146778e+10 | R18: The South | S18: =INDEX(Data!$B$2:$B$51,MATCH(1,INDEX((Data!$C$2:$C$51=R18)*(Data!$U$2:$U$51=A18),0),0)) -> South Carolina | T18: =SUMPRODUCT((Data!$B$2:$B$51=S18)*(Data!$C$2:$C$51=R18)*(Data!$K$2:$K$51)) -> 0.075
A19: 7 | B19: The South | C19: =INDEX(Data!$B$2:$B$51,MATCH(1,INDEX((Data!$C$2:$C$51=B19)*(Data!$Q$2:$Q$51=A19),0),0)) -> Alabama | D19: =SUMPRODUCT((Data!$B$2:$B$51=C19)*(Data!$C$2:$C$51=B19)*(Data!$D$2:$D$51)) -> 4822023 | F19: The South | G19: =INDEX(Data!$B$2:$B$51,MATCH(1,INDEX((Data!$C$2:$C$51=F19)*(Data!$R$2:$R$51=A19),0),0)) -> Kentucky | H19: =SUMPRODUCT((Data!$B$2:$B$51=G19)*(Data!$C$2:$C$51=F19)*(Data!$H$2:$H$51)) -> 110 | J19: The South | K19: =INDEX(Data!$B$2:$B$51,MATCH(1,INDEX((Data!$C$2:$C$51=J19)*(Data!$S$2:$S$51=A19),0),0)) -> Louisiana | L19: =SUMPRODUCT((Data!$B$2:$B$51=K19)*(Data!$C$2:$C$51=J19)*(Data!$I$2:$I$51)) -> 34811072000 | N19: The South | O19: =INDEX(Data!$B$2:$B$51,MATCH(1,INDEX((Data!$C$2:$C$51=N19)*(Data!$T$2:$T$51=A19),0),0)) -> Louisiana | P19: =SUMPRODUCT((Data!$B$2:$B$51=O19)*(Data!$C$2:$C$51=N19)*(Data!$J$2:$J$51)) -> 5.297247699e+10 | R19: The South | S19: =INDEX(Data!$B$2:$B$51,MATCH(1,INDEX((Data!$C$2:$C$51=R19)*(Data!$U$2:$U$51=A19),0),0)) -> Arkansas | T19: =SUMPRODUCT((Data!$B$2:$B$51=S19)*(Data!$C$2:$C$51=R19)*(Data!$K$2:$K$51)) -> 0.075
A20: 8 | B20: The South | C20: =INDEX(Data!$B$2:$B$51,MATCH(1,INDEX((Data!$C$2:$C$51=B20)*(Data!$Q$2:$Q$51=A20),0),0)) -> South Carolina | D20: =SUMPRODUCT((Data!$B$2:$B$51=C20)*(Data!$C$2:$C$51=B20)*(Data!$D$2:$D$51)) -> 4723723 | F20: The South | G20: =INDEX(Data!$B$2:$B$51,MATCH(1,INDEX((Data!$C$2:$C$51=F20)*(Data!$R$2:$R$51=A20),0),0)) -> Louisiana | H20: =SUMPRODUCT((Data!$B$2:$B$51=G20)*(Data!$C$2:$C$51=F20)*(Data!$H$2:$H$51)) -> 105 | J20: The South | K20: =INDEX(Data!$B$2:$B$51,MATCH(1,INDEX((Data!$C$2:$C$51=J20)*(Data!$S$2:$S$51=A20),0),0)) -> Oklahoma | L20: =SUMPRODUCT((Data!$B$2:$B$51=K20)*(Data!$C$2:$C$51=J20)*(Data!$I$2:$I$51)) -> 27087264000 | N20: The South | O20: =INDEX(Data!$B$2:$B$51,MATCH(1,INDEX((Data!$C$2:$C$51=N20)*(Data!$T$2:$T$51=A20),0),0)) -> Oklahoma | P20: =SUMPRODUCT((Data!$B$2:$B$51=O20)*(Data!$C$2:$C$51=N20)*(Data!$J$2:$J$51)) -> 43839291300 | R20: The South | S20: =INDEX(Data!$B$2:$B$51,MATCH(1,INDEX((Data!$C$2:$C$51=R20)*(Data!$U$2:$U$51=A20),0),0)) -> Florida | T20: =SUMPRODUCT((Data!$B$2:$B$51=S20)*(Data!$C$2:$C$51=R20)*(Data!$K$2:$K$51)) -> 0.067
A21: 9 | B21: The South | C21: =INDEX(Data!$B$2:$B$51,MATCH(1,INDEX((Data!$C$2:$C$51=B21)*(Data!$Q$2:$Q$51=A21),0),0)) -> Louisiana | D21: =SUMPRODUCT((Data!$B$2:$B$51=C21)*(Data!$C$2:$C$51=B21)*(Data!$D$2:$D$51)) -> 4601893 | F21: The South | G21: =INDEX(Data!$B$2:$B$51,MATCH(1,INDEX((Data!$C$2:$C$51=F21)*(Data!$R$2:$R$51=A21),0),0)) -> Texas | H21: =SUMPRODUCT((Data!$B$2:$B$51=G21)*(Data!$C$2:$C$51=F21)*(Data!$H$2:$H$51)) -> 98.07 | J21: The South | K21: =INDEX(Data!$B$2:$B$51,MATCH(1,INDEX((Data!$C$2:$C$51=J21)*(Data!$S$2:$S$51=A21),0),0)) -> Arkansas | L21: =SUMPRODUCT((Data!$B$2:$B$51=K21)*(Data!$C$2:$C$51=J21)*(Data!$I$2:$I$51)) -> 25299832000 | N21: The South | O21: =INDEX(Data!$B$2:$B$51,MATCH(1,INDEX((Data!$C$2:$C$51=N21)*(Data!$T$2:$T$51=A21),0),0)) -> Arkansas | P21: =SUMPRODUCT((Data!$B$2:$B$51=O21)*(Data!$C$2:$C$51=N21)*(Data!$J$2:$J$51)) -> 3.397545076e+10 | R21: The South | S21: =INDEX(Data!$B$2:$B$51,MATCH(1,INDEX((Data!$C$2:$C$51=R21)*(Data!$U$2:$U$51=A21),0),0)) -> Alabama | T21: =SUMPRODUCT((Data!$B$2:$B$51=S21)*(Data!$C$2:$C$51=R21)*(Data!$K$2:$K$51)) -> 0.065
A22: 10 | B22: The South | C22: =INDEX(Data!$B$2:$B$51,MATCH(1,INDEX((Data!$C$2:$C$51=B22)*(Data!$Q$2:$Q$51=A22),0),0)) -> Kentucky | D22: =SUMPRODUCT((Data!$B$2:$B$51=C22)*(Data!$C$2:$C$51=B22)*(Data!$D$2:$D$51)) -> 4380415 | F22: The South | G22: =INDEX(Data!$B$2:$B$51,MATCH(1,INDEX((Data!$C$2:$C$51=F22)*(Data!$R$2:$R$51=A22),0),0)) -> Alabama | H22: =SUMPRODUCT((Data!$B$2:$B$51=G22)*(Data!$C$2:$C$51=F22)*(Data!$H$2:$H$51)) -> 94.65 | J22: The South | K22: =INDEX(Data!$B$2:$B$51,MATCH(1,INDEX((Data!$C$2:$C$51=J22)*(Data!$S$2:$S$51=A22),0),0)) -> Kentucky | L22: =SUMPRODUCT((Data!$B$2:$B$51=K22)*(Data!$C$2:$C$51=J22)*(Data!$I$2:$I$51)) -> 25085813000 | N22: The South | O22: =INDEX(Data!$B$2:$B$51,MATCH(1,INDEX((Data!$C$2:$C$51=N22)*(Data!$T$2:$T$51=A22),0),0)) -> Kentucky | P22: =SUMPRODUCT((Data!$B$2:$B$51=O22)*(Data!$C$2:$C$51=N22)*(Data!$J$2:$J$51)) -> 5.078051242e+10 | R22: The South | S22: =INDEX(Data!$B$2:$B$51,MATCH(1,INDEX((Data!$C$2:$C$51=R22)*(Data!$U$2:$U$51=A22),0),0)) -> Louisiana | T22: =SUMPRODUCT((Data!$B$2:$B$51=S22)*(Data!$C$2:$C$51=R22)*(Data!$K$2:$K$51)) -> 0.065
A23: 1 | B23: The North-East | C23: =INDEX(Data!$B$2:$B$51,MATCH(1,INDEX((Data!$C$2:$C$51=B23)*(Data!$Q$2:$Q$51=A23),0),0)) -> New York | D23: =SUMPRODUCT((Data!$B$2:$B$51=C23)*(Data!$C$2:$C$51=B23)*(Data!$D$2:$D$51)) -> 19570261 | F23: The North-East | G23: =INDEX(Data!$B$2:$B$51,MATCH(1,INDEX((Data!$C$2:$C$51=F23)*(Data!$R$2:$R$51=A23),0),0)) -> New Jersey | H23: =SUMPRODUCT((Data!$B$2:$B$51=G23)*(Data!$C$2:$C$51=F23)*(Data!$H$2:$H$51)) -> 1189 | J23: The North-East | K23: =INDEX(Data!$B$2:$B$51,MATCH(1,INDEX((Data!$C$2:$C$51=J23)*(Data!$S$2:$S$51=A23),0),0)) -> New York | L23: =SUMPRODUCT((Data!$B$2:$B$51=K23)*(Data!$C$2:$C$51=J23)*(Data!$I$2:$I$51)) -> 201167954000 | N23: The North-East | O23: =INDEX(Data!$B$2:$B$51,MATCH(1,INDEX((Data!$C$2:$C$51=N23)*(Data!$T$2:$T$51=A23),0),0)) -> New York | P23: =SUMPRODUCT((Data!$B$2:$B$51=O23)*(Data!$C$2:$C$51=N23)*(Data!$J$2:$J$51)) -> 2.261376776e+11 | R23: The North-East | S23: =INDEX(Data!$B$2:$B$51,MATCH(1,INDEX((Data!$C$2:$C$51=R23)*(Data!$U$2:$U$51=A23),0),0)) -> Rhode Island | T23: =SUMPRODUCT((Data!$B$2:$B$51=S23)*(Data!$C$2:$C$51=R23)*(Data!$K$2:$K$51)) -> 0.092
A24: 2 | B24: The North-East | C24: =INDEX(Data!$B$2:$B$51,MATCH(1,INDEX((Data!$C$2:$C$51=B24)*(Data!$Q$2:$Q$51=A24),0),0)) -> Pennsylvania | D24: =SUMPRODUCT((Data!$B$2:$B$51=C24)*(Data!$C$2:$C$51=B24)*(Data!$D$2:$D$51)) -> 12763536 | F24: The North-East | G24: =INDEX(Data!$B$2:$B$51,MATCH(1,INDEX((Data!$C$2:$C$51=F24)*(Data!$R$2:$R$51=A24),0),0)) -> Massachusetts | H24: =SUMPRODUCT((Data!$B$2:$B$51=G24)*(Data!$C$2:$C$51=F24)*(Data!$H$2:$H$51)) -> 852.1 | J24: The North-East | K24: =INDEX(Data!$B$2:$B$51,MATCH(1,INDEX((Data!$C$2:$C$51=J24)*(Data!$S$2:$S$51=A24),0),0)) -> New Jersey | L24: =SUMPRODUCT((Data!$B$2:$B$51=K24)*(Data!$C$2:$C$51=J24)*(Data!$I$2:$I$51)) -> 111377490000 | N24: The North-East | O24: =INDEX(Data!$B$2:$B$51,MATCH(1,INDEX((Data!$C$2:$C$51=N24)*(Data!$T$2:$T$51=A24),0),0)) -> New Jersey | P24: =SUMPRODUCT((Data!$B$2:$B$51=O24)*(Data!$C$2:$C$51=N24)*(Data!$J$2:$J$51)) -> 1.026570071e+11 | R24: The North-East | S24: =INDEX(Data!$B$2:$B$51,MATCH(1,INDEX((Data!$C$2:$C$51=R24)*(Data!$U$2:$U$51=A24),0),0)) -> New Jersey | T24: =SUMPRODUCT((Data!$B$2:$B$51=S24)*(Data!$C$2:$C$51=R24)*(Data!$K$2:$K$51)) -> 0.084
A25: 3 | B25: The North-East | C25: =INDEX(Data!$B$2:$B$51,MATCH(1,INDEX((Data!$C$2:$C$51=B25)*(Data!$Q$2:$Q$51=A25),0),0)) -> New Jersey | D25: =SUMPRODUCT((Data!$B$2:$B$51=C25)*(Data!$C$2:$C$51=B25)*(Data!$D$2:$D$51)) -> 8864590 | F25: The North-East | G25: =INDEX(Data!$B$2:$B$51,MATCH(1,INDEX((Data!$C$2:$C$51=F25)*(Data!$R$2:$R$51=A25),0),0)) -> Connecticut | H25: =SUMPRODUCT((Data!$B$2:$B$51=G25)*(Data!$C$2:$C$51=F25)*(Data!$H$2:$H$51)) -> 741.4 | J25: The North-East | K25: =INDEX(Data!$B$2:$B$51,MATCH(1,INDEX((Data!$C$2:$C$51=J25)*(Data!$S$2:$S$51=A25),0),0)) -> Pennsylvania | L25: =SUMPRODUCT((Data!$B$2:$B$51=K25)*(Data!$C$2:$C$51=J25)*(Data!$I$2:$I$51)) -> 108961515000 | N25: The North-East | O25: =INDEX(Data!$B$2:$B$51,MATCH(1,INDEX((Data!$C$2:$C$51=N25)*(Data!$T$2:$T$51=A25),0),0)) -> Pennsylvania | P25: =SUMPRODUCT((Data!$B$2:$B$51=O25)*(Data!$C$2:$C$51=N25)*(Data!$J$2:$J$51)) -> 148322935565 | R25: The North-East | S25: =INDEX(Data!$B$2:$B$51,MATCH(1,INDEX((Data!$C$2:$C$51=R25)*(Data!$U$2:$U$51=A25),0),0)) -> Connecticut | T25: =SUMPRODUCT((Data!$B$2:$B$51=S25)*(Data!$C$2:$C$51=R25)*(Data!$K$2:$K$51)) -> 0.079
A26: 4 | B26: The North-East | C26: =INDEX(Data!$B$2:$B$51,MATCH(1,INDEX((Data!$C$2:$C$51=B26)*(Data!$Q$2:$Q$51=A26),0),0)) -> Massachusetts | D26: =SUMPRODUCT((Data!$B$2:$B$51=C26)*(Data!$C$2:$C$51=B26)*(Data!$D$2:$D$51)) -> 6646144 | F26: The North-East | G26: =INDEX(Data!$B$2:$B$51,MATCH(1,INDEX((Data!$C$2:$C$51=F26)*(Data!$R$2:$R$51=A26),0),0)) -> Maryland | H26: =SUMPRODUCT((Data!$B$2:$B$51=G26)*(Data!$C$2:$C$51=F26)*(Data!$H$2:$H$51)) -> 606.2 | J26: The North-East | K26: =INDEX(Data!$B$2:$B$51,MATCH(1,INDEX((Data!$C$2:$C$51=J26)*(Data!$S$2:$S$51=A26),0),0)) -> Massachusetts | L26: =SUMPRODUCT((Data!$B$2:$B$51=K26)*(Data!$C$2:$C$51=J26)*(Data!$I$2:$I$51)) -> 79826976000 | N26: The North-East | O26: =INDEX(Data!$B$2:$B$51,MATCH(1,INDEX((Data!$C$2:$C$51=N26)*(Data!$T$2:$T$51=A26),0),0)) -> Massachusetts | P26: =SUMPRODUCT((Data!$B$2:$B$51=O26)*(Data!$C$2:$C$51=N26)*(Data!$J$2:$J$51)) -> 7.635343235e+10 | R26: The North-East | S26: =INDEX(Data!$B$2:$B$51,MATCH(1,INDEX((Data!$C$2:$C$51=R26)*(Data!$U$2:$U$51=A26),0),0)) -> New York | T26: =SUMPRODUCT((Data!$B$2:$B$51=S26)*(Data!$C$2:$C$51=R26)*(Data!$K$2:$K$51)) -> 0.077
A27: 5 | B27: The North-East | C27: =INDEX(Data!$B$2:$B$51,MATCH(1,INDEX((Data!$C$2:$C$51=B27)*(Data!$Q$2:$Q$51=A27),0),0)) -> Maryland | D27: =SUMPRODUCT((Data!$B$2:$B$51=C27)*(Data!$C$2:$C$51=B27)*(Data!$D$2:$D$51)) -> 5884563 | F27: The North-East | G27: =INDEX(Data!$B$2:$B$51,MATCH(1,INDEX((Data!$C$2:$C$51=F27)*(Data!$R$2:$R$51=A27),0),0)) -> Delaware | H27: =SUMPRODUCT((Data!$B$2:$B$51=G27)*(Data!$C$2:$C$51=F27)*(Data!$H$2:$H$51)) -> 470.7 | J27: The North-East | K27: =INDEX(Data!$B$2:$B$51,MATCH(1,INDEX((Data!$C$2:$C$51=J27)*(Data!$S$2:$S$51=A27),0),0)) -> Maryland | L27: =SUMPRODUCT((Data!$B$2:$B$51=K27)*(Data!$C$2:$C$51=J27)*(Data!$I$2:$I$51)) -> 48107002000 | N27: The North-East | O27: =INDEX(Data!$B$2:$B$51,MATCH(1,INDEX((Data!$C$2:$C$51=N27)*(Data!$T$2:$T$51=A27),0),0)) -> Maryland | P27: =SUMPRODUCT((Data!$B$2:$B$51=O27)*(Data!$C$2:$C$51=N27)*(Data!$J$2:$J$51)) -> 6.758557409e+10 | R27: The North-East | S27: =INDEX(Data!$B$2:$B$51,MATCH(1,INDEX((Data!$C$2:$C$51=R27)*(Data!$U$2:$U$51=A27),0),0)) -> Pennsylvania | T27: =SUMPRODUCT((Data!$B$2:$B$51=S27)*(Data!$C$2:$C$51=R27)*(Data!$K$2:$K$51)) -> 0.075
A28: 6 | B28: The North-East | C28: =INDEX(Data!$B$2:$B$51,MATCH(1,INDEX((Data!$C$2:$C$51=B28)*(Data!$Q$2:$Q$51=A28),0),0)) -> Connecticut | D28: =SUMPRODUCT((Data!$B$2:$B$51=C28)*(Data!$C$2:$C$51=B28)*(Data!$D$2:$D$51)) -> 3590347 | F28: The North-East | G28: =INDEX(Data!$B$2:$B$51,MATCH(1,INDEX((Data!$C$2:$C$51=F28)*(Data!$R$2:$R$51=A28),0),0)) -> New York | H28: =SUMPRODUCT((Data!$B$2:$B$51=G28)*(Data!$C$2:$C$51=F28)*(Data!$H$2:$H$51)) -> 415.3 | J28: The North-East | K28: =INDEX(Data!$B$2:$B$51,MATCH(1,INDEX((Data!$C$2:$C$51=J28)*(Data!$S$2:$S$51=A28),0),0)) -> Connecticut | L28: =SUMPRODUCT((Data!$B$2:$B$51=K28)*(Data!$C$2:$C$51=J28)*(Data!$I$2:$I$51)) -> 47262702000 | N28: The North-East | O28: =INDEX(Data!$B$2:$B$51,MATCH(1,INDEX((Data!$C$2:$C$51=N28)*(Data!$T$2:$T$51=A28),0),0)) -> Connecticut | P28: =SUMPRODUCT((Data!$B$2:$B$51=O28)*(Data!$C$2:$C$51=N28)*(Data!$J$2:$J$51)) -> 41647326735 | R28: The North-East | S28: =INDEX(Data!$B$2:$B$51,MATCH(1,INDEX((Data!$C$2:$C$51=R28)*(Data!$U$2:$U$51=A28),0),0)) -> Massachusetts | T28: =SUMPRODUCT((Data!$B$2:$B$51=S28)*(Data!$C$2:$C$51=R28)*(Data!$K$2:$K$51)) -> 0.072
A29: 7 | B29: The North-East | C29: =INDEX(Data!$B$2:$B$51,MATCH(1,INDEX((Data!$C$2:$C$51=B29)*(Data!$Q$2:$Q$51=A29),0),0)) -> Maine | D29: =SUMPRODUCT((Data!$B$2:$B$51=C29)*(Data!$C$2:$C$51=B29)*(Data!$D$2:$D$51)) -> 1329192 | F29: The North-East | G29: =INDEX(Data!$B$2:$B$51,MATCH(1,INDEX((Data!$C$2:$C$51=F29)*(Data!$R$2:$R$51=A29),0),0)) -> Pennsylvania | H29: =SUMPRODUCT((Data!$B$2:$B$51=G29)*(Data!$C$2:$C$51=F29)*(Data!$H$2:$H$51)) -> 285.3 | J29: The North-East | K29: =INDEX(Data!$B$2:$B$51,MATCH(1,INDEX((Data!$C$2:$C$51=J29)*(Data!$S$2:$S$51=A29),0),0)) -> Delaware | L29: =SUMPRODUCT((Data!$B$2:$B$51=K29)*(Data!$C$2:$C$51=J29)*(Data!$I$2:$I$51)) -> 21835412000 | N29: The North-East | O29: =INDEX(Data!$B$2:$B$51,MATCH(1,INDEX((Data!$C$2:$C$51=N29)*(Data!$T$2:$T$51=A29),0),0)) -> Delaware | P29: =SUMPRODUCT((Data!$B$2:$B$51=O29)*(Data!$C$2:$C$51=N29)*(Data!$J$2:$J$51)) -> 1.05944954e+10 | R29: The North-East | S29: =INDEX(Data!$B$2:$B$51,MATCH(1,INDEX((Data!$C$2:$C$51=R29)*(Data!$U$2:$U$51=A29),0),0)) -> Delaware | T29: =SUMPRODUCT((Data!$B$2:$B$51=S29)*(Data!$C$2:$C$51=R29)*(Data!$K$2:$K$51)) -> 0.068
A30: 8 | B30: The North-East | C30: =INDEX(Data!$B$2:$B$51,MATCH(1,INDEX((Data!$C$2:$C$51=B30)*(Data!$Q$2:$Q$51=A30),0),0)) -> New Hampshire | D30: =SUMPRODUCT((Data!$B$2:$B$51=C30)*(Data!$C$2:$C$51=B30)*(Data!$D$2:$D$51)) -> 1320718 | F30: The North-East | G30: =INDEX(Data!$B$2:$B$51,MATCH(1,INDEX((Data!$C$2:$C$51=F30)*(Data!$R$2:$R$51=A30),0),0)) -> New Hampshire | H30: =SUMPRODUCT((Data!$B$2:$B$51=G30)*(Data!$C$2:$C$51=F30)*(Data!$H$2:$H$51)) -> 147 | J30: The North-East | K30: =INDEX(Data!$B$2:$B$51,MATCH(1,INDEX((Data!$C$2:$C$51=J30)*(Data!$S$2:$S$51=A30),0),0)) -> Rhode Island | L30: =SUMPRODUCT((Data!$B$2:$B$51=K30)*(Data!$C$2:$C$51=J30)*(Data!$I$2:$I$51)) -> 10992338000 | N30: The North-East | O30: =INDEX(Data!$B$2:$B$51,MATCH(1,INDEX((Data!$C$2:$C$51=N30)*(Data!$T$2:$T$51=A30),0),0)) -> Rhode Island | P30: =SUMPRODUCT((Data!$B$2:$B$51=O30)*(Data!$C$2:$C$51=N30)*(Data!$J$2:$J$51)) -> 12421132535 | R30: The North-East | S30: =INDEX(Data!$B$2:$B$51,MATCH(1,INDEX((Data!$C$2:$C$51=R30)*(Data!$U$2:$U$51=A30),0),0)) -> Maryland | T30: =SUMPRODUCT((Data!$B$2:$B$51=S30)*(Data!$C$2:$C$51=R30)*(Data!$K$2:$K$51)) -> 0.067
A31: 9 | B31: The North-East | C31: =INDEX(Data!$B$2:$B$51,MATCH(1,INDEX((Data!$C$2:$C$51=B31)*(Data!$Q$2:$Q$51=A31),0),0)) -> Rhode Island | D31: =SUMPRODUCT((Data!$B$2:$B$51=C31)*(Data!$C$2:$C$51=B31)*(Data!$D$2:$D$51)) -> 1050292 | F31: The North-East | G31: =INDEX(Data!$B$2:$B$51,MATCH(1,INDEX((Data!$C$2:$C$51=F31)*(Data!$R$2:$R$51=A31),0),0)) -> Rhode Island | H31: =SUMPRODUCT((Data!$B$2:$B$51=G31)*(Data!$C$2:$C$51=F31)*(Data!$H$2:$H$51)) -> 100.6 | J31: The North-East | K31: =INDEX(Data!$B$2:$B$51,MATCH(1,INDEX((Data!$C$2:$C$51=J31)*(Data!$S$2:$S$51=A31),0),0)) -> New Hampshire | L31: =SUMPRODUCT((Data!$B$2:$B$51=K31)*(Data!$C$2:$C$51=J31)*(Data!$I$2:$I$51)) -> 8807691000 | N31: The North-East | O31: =INDEX(Data!$B$2:$B$51,MATCH(1,INDEX((Data!$C$2:$C$51=N31)*(Data!$T$2:$T$51=A31),0),0)) -> New Hampshire | P31: =SUMPRODUCT((Data!$B$2:$B$51=O31)*(Data!$C$2:$C$51=N31)*(Data!$J$2:$J$51)) -> 15343751955 | R31: The North-East | S31: =INDEX(Data!$B$2:$B$51,MATCH(1,INDEX((Data!$C$2:$C$51=R31)*(Data!$U$2:$U$51=A31),0),0)) -> Maine | T31: =SUMPRODUCT((Data!$B$2:$B$51=S31)*(Data!$C$2:$C$51=R31)*(Data!$K$2:$K$51)) -> 0.067
A32: 10 | B32: The North-East | C32: =INDEX(Data!$B$2:$B$51,MATCH(1,INDEX((Data!$C$2:$C$51=B32)*(Data!$Q$2:$Q$51=A32),0),0)) -> Delaware | D32: =SUMPRODUCT((Data!$B$2:$B$51=C32)*(Data!$C$2:$C$51=B32)*(Data!$D$2:$D$51)) -> 917092 | F32: The North-East | G32: =INDEX(Data!$B$2:$B$51,MATCH(1,INDEX((Data!$C$2:$C$51=F32)*(Data!$R$2:$R$51=A32),0),0)) -> Vermont | H32: =SUMPRODUCT((Data!$B$2:$B$51=G32)*(Data!$C$2:$C$51=F32)*(Data!$H$2:$H$51)) -> 67.73 | J32: The North-East | K32: =INDEX(Data!$B$2:$B$51,MATCH(1,INDEX((Data!$C$2:$C$51=J32)*(Data!$S$2:$S$51=A32),0),0)) -> Maine | L32: =SUMPRODUCT((Data!$B$2:$B$51=K32)*(Data!$C$2:$C$51=J32)*(Data!$I$2:$I$51)) -> 6229189000 | N32: The North-East | O32: =INDEX(Data!$B$2:$B$51,MATCH(1,INDEX((Data!$C$2:$C$51=N32)*(Data!$T$2:$T$51=A32),0),0)) -> Maine | P32: =SUMPRODUCT((Data!$B$2:$B$51=O32)*(Data!$C$2:$C$51=N32)*(Data!$J$2:$J$51)) -> 15343751955 | R32: The North-East | S32: =INDEX(Data!$B$2:$B$51,MATCH(1,INDEX((Data!$C$2:$C$51=R32)*(Data!$U$2:$U$51=A32),0),0)) -> New Hampshire | T32: =SUMPRODUCT((Data!$B$2:$B$51=S32)*(Data!$C$2:$C$51=R32)*(Data!$K$2:$K$51)) -> 0.051
A33: 1 | B33: The Mid-West | C33: =INDEX(Data!$B$2:$B$51,MATCH(1,INDEX((Data!$C$2:$C$51=B33)*(Data!$Q$2:$Q$51=A33),0),0)) -> Illinois | D33: =SUMPRODUCT((Data!$B$2:$B$51=C33)*(Data!$C$2:$C$51=B33)*(Data!$D$2:$D$51)) -> 12875255 | F33: The Mid-West | G33: =INDEX(Data!$B$2:$B$51,MATCH(1,INDEX((Data!$C$2:$C$51=F33)*(Data!$R$2:$R$51=A33),0),0)) -> Ohio | H33: =SUMPRODUCT((Data!$B$2:$B$51=G33)*(Data!$C$2:$C$51=F33)*(Data!$H$2:$H$51)) -> 282.5 | J33: The Mid-West | K33: =INDEX(Data!$B$2:$B$51,MATCH(1,INDEX((Data!$C$2:$C$51=J33)*(Data!$S$2:$S$51=A33),0),0)) -> Illinois | L33: =SUMPRODUCT((Data!$B$2:$B$51=K33)*(Data!$C$2:$C$51=J33)*(Data!$I$2:$I$51)) -> 124431227000 | N33: The Mid-West | O33: =INDEX(Data!$B$2:$B$51,MATCH(1,INDEX((Data!$C$2:$C$51=N33)*(Data!$T$2:$T$51=A33),0),0)) -> Illinois | P33: =SUMPRODUCT((Data!$B$2:$B$51=O33)*(Data!$C$2:$C$51=N33)*(Data!$J$2:$J$51)) -> 149784245275 | R33: The Mid-West | S33: =INDEX(Data!$B$2:$B$51,MATCH(1,INDEX((Data!$C$2:$C$51=R33)*(Data!$U$2:$U$51=A33),0),0)) -> Michigan | T33: =SUMPRODUCT((Data!$B$2:$B$51=S33)*(Data!$C$2:$C$51=R33)*(Data!$K$2:$K$51)) -> 0.09
A34: 2 | B34: The Mid-West | C34: =INDEX(Data!$B$2:$B$51,MATCH(1,INDEX((Data!$C$2:$C$51=B34)*(Data!$Q$2:$Q$51=A34),0),0)) -> Ohio | D34: =SUMPRODUCT((Data!$B$2:$B$51=C34)*(Data!$C$2:$C$51=B34)*(Data!$D$2:$D$51)) -> 11544225 | F34: The Mid-West | G34: =INDEX(Data!$B$2:$B$51,MATCH(1,INDEX((Data!$C$2:$C$51=F34)*(Data!$R$2:$R$51=A34),0),0)) -> Illinois | H34: =SUMPRODUCT((Data!$B$2:$B$51=G34)*(Data!$C$2:$C$51=F34)*(Data!$H$2:$H$51)) -> 231.9 | J34: The Mid-West | K34: =INDEX(Data!$B$2:$B$51,MATCH(1,INDEX((Data!$C$2:$C$51=J34)*(Data!$S$2:$S$51=A34),0),0)) -> Ohio | L34: =SUMPRODUCT((Data!$B$2:$B$51=K34)*(Data!$C$2:$C$51=J34)*(Data!$I$2:$I$51)) -> 111094276000 | N34: The Mid-West | O34: =INDEX(Data!$B$2:$B$51,MATCH(1,INDEX((Data!$C$2:$C$51=N34)*(Data!$T$2:$T$51=A34),0),0)) -> Ohio | P34: =SUMPRODUCT((Data!$B$2:$B$51=O34)*(Data!$C$2:$C$51=N34)*(Data!$J$2:$J$51)) -> 1.348058207e+11 | R34: The Mid-West | S34: =INDEX(Data!$B$2:$B$51,MATCH(1,INDEX((Data!$C$2:$C$51=R34)*(Data!$U$2:$U$51=A34),0),0)) -> Illinois | T34: =SUMPRODUCT((Data!$B$2:$B$51=S34)*(Data!$C$2:$C$51=R34)*(Data!$K$2:$K$51)) -> 0.089
A35: 3 | B35: The Mid-West | C35: =INDEX(Data!$B$2:$B$51,MATCH(1,INDEX((Data!$C$2:$C$51=B35)*(Data!$Q$2:$Q$51=A35),0),0)) -> Michigan | D35: =SUMPRODUCT((Data!$B$2:$B$51=C35)*(Data!$C$2:$C$51=B35)*(Data!$D$2:$D$51)) -> 9883360 | F35: The Mid-West | G35: =INDEX(Data!$B$2:$B$51,MATCH(1,INDEX((Data!$C$2:$C$51=F35)*(Data!$R$2:$R$51=A35),0),0)) -> Indiana | H35: =SUMPRODUCT((Data!$B$2:$B$51=G35)*(Data!$C$2:$C$51=F35)*(Data!$H$2:$H$51)) -> 182.5 | J35: The Mid-West | K35: =INDEX(Data!$B$2:$B$51,MATCH(1,INDEX((Data!$C$2:$C$51=J35)*(Data!$S$2:$S$51=A35),0),0)) -> Minnesota | L35: =SUMPRODUCT((Data!$B$2:$B$51=K35)*(Data!$C$2:$C$51=J35)*(Data!$I$2:$I$51)) -> 78685402000 | N35: The Mid-West | O35: =INDEX(Data!$B$2:$B$51,MATCH(1,INDEX((Data!$C$2:$C$51=N35)*(Data!$T$2:$T$51=A35),0),0)) -> Minnesota | P35: =SUMPRODUCT((Data!$B$2:$B$51=O35)*(Data!$C$2:$C$51=N35)*(Data!$J$2:$J$51)) -> 6.210566268e+10 | R35: The Mid-West | S35: =INDEX(Data!$B$2:$B$51,MATCH(1,INDEX((Data!$C$2:$C$51=R35)*(Data!$U$2:$U$51=A35),0),0)) -> Ohio | T35: =SUMPRODUCT((Data!$B$2:$B$51=S35)*(Data!$C$2:$C$51=R35)*(Data!$K$2:$K$51)) -> 0.075
A36: 4 | B36: The Mid-West | C36: =INDEX(Data!$B$2:$B$51,MATCH(1,INDEX((Data!$C$2:$C$51=B36)*(Data!$Q$2:$Q$51=A36),0),0)) -> Indiana | D36: =SUMPRODUCT((Data!$B$2:$B$51=C36)*(Data!$C$2:$C$51=B36)*(Data!$D$2:$D$51)) -> 6537334 | F36: The Mid-West | G36: =INDEX(Data!$B$2:$B$51,MATCH(1,INDEX((Data!$C$2:$C$51=F36)*(Data!$R$2:$R$51=A36),0),0)) -> Michigan | H36: =SUMPRODUCT((Data!$B$2:$B$51=G36)*(Data!$C$2:$C$51=F36)*(Data!$H$2:$H$51)) -> 174.8 | J36: The Mid-West | K36: =INDEX(Data!$B$2:$B$51,MATCH(1,INDEX((Data!$C$2:$C$51=J36)*(Data!$S$2:$S$51=A36),0),0)) -> Michigan | L36: =SUMPRODUCT((Data!$B$2:$B$51=K36)*(Data!$C$2:$C$51=J36)*(Data!$I$2:$I$51)) -> 59210158000 | N36: The Mid-West | O36: =INDEX(Data!$B$2:$B$51,MATCH(1,INDEX((Data!$C$2:$C$51=N36)*(Data!$T$2:$T$51=A36),0),0)) -> Michigan | P36: =SUMPRODUCT((Data!$B$2:$B$51=O36)*(Data!$C$2:$C$51=N36)*(Data!$J$2:$J$51)) -> 1.154434671e+11 | R36: The Mid-West | S36: =INDEX(Data!$B$2:$B$51,MATCH(1,INDEX((Data!$C$2:$C$51=R36)*(Data!$U$2:$U$51=A36),0),0)) -> Indiana | T36: =SUMPRODUCT((Data!$B$2:$B$51=S36)*(Data!$C$2:$C$51=R36)*(Data!$K$2:$K$51)) -> 0.075
A37: 5 | B37: The Mid-West | C37: =INDEX(Data!$B$2:$B$51,MATCH(1,INDEX((Data!$C$2:$C$51=B37)*(Data!$Q$2:$Q$51=A37),0),0)) -> Missouri | D37: =SUMPRODUCT((Data!$B$2:$B$51=C37)*(Data!$C$2:$C$51=B37)*(Data!$D$2:$D$51)) -> 6021988 | F37: The Mid-West | G37: =INDEX(Data!$B$2:$B$51,MATCH(1,INDEX((Data!$C$2:$C$51=F37)*(Data!$R$2:$R$51=A37),0),0)) -> Wisconsin | H37: =SUMPRODUCT((Data!$B$2:$B$51=G37)*(Data!$C$2:$C$51=F37)*(Data!$H$2:$H$51)) -> 105.2 | J37: The Mid-West | K37: =INDEX(Data!$B$2:$B$51,MATCH(1,INDEX((Data!$C$2:$C$51=J37)*(Data!$S$2:$S$51=A37),0),0)) -> Indiana | L37: =SUMPRODUCT((Data!$B$2:$B$51=K37)*(Data!$C$2:$C$51=J37)*(Data!$I$2:$I$51)) -> 51238512000 | N37: The Mid-West | O37: =INDEX(Data!$B$2:$B$51,MATCH(1,INDEX((Data!$C$2:$C$51=N37)*(Data!$T$2:$T$51=A37),0),0)) -> Indiana | P37: =SUMPRODUCT((Data!$B$2:$B$51=O37)*(Data!$C$2:$C$51=N37)*(Data!$J$2:$J$51)) -> 7.562277749e+10 | R37: The Mid-West | S37: =INDEX(Data!$B$2:$B$51,MATCH(1,INDEX((Data!$C$2:$C$51=R37)*(Data!$U$2:$U$51=A37),0),0)) -> Missouri | T37: =SUMPRODUCT((Data!$B$2:$B$51=S37)*(Data!$C$2:$C$51=R37)*(Data!$K$2:$K$51)) -> 0.065
A38: 6 | B38: The Mid-West | C38: =INDEX(Data!$B$2:$B$51,MATCH(1,INDEX((Data!$C$2:$C$51=B38)*(Data!$Q$2:$Q$51=A38),0),0)) -> Wisconsin | D38: =SUMPRODUCT((Data!$B$2:$B$51=C38)*(Data!$C$2:$C$51=B38)*(Data!$D$2:$D$51)) -> 5726398 | F38: The Mid-West | G38: =INDEX(Data!$B$2:$B$51,MATCH(1,INDEX((Data!$C$2:$C$51=F38)*(Data!$R$2:$R$51=A38),0),0)) -> Missouri | H38: =SUMPRODUCT((Data!$B$2:$B$51=G38)*(Data!$C$2:$C$51=F38)*(Data!$H$2:$H$51)) -> 87.26 | J38: The Mid-West | K38: =INDEX(Data!$B$2:$B$51,MATCH(1,INDEX((Data!$C$2:$C$51=J38)*(Data!$S$2:$S$51=A38),0),0)) -> Missouri | L38: =SUMPRODUCT((Data!$B$2:$B$51=K38)*(Data!$C$2:$C$51=J38)*(Data!$I$2:$I$51)) -> 48413247000 | N38: The Mid-West | O38: =INDEX(Data!$B$2:$B$51,MATCH(1,INDEX((Data!$C$2:$C$51=N38)*(Data!$T$2:$T$51=A38),0),0)) -> Missouri | P38: =SUMPRODUCT((Data!$B$2:$B$51=O38)*(Data!$C$2:$C$51=N38)*(Data!$J$2:$J$51)) -> 6.977753865e+10 | R38: The Mid-West | S38: =INDEX(Data!$B$2:$B$51,MATCH(1,INDEX((Data!$C$2:$C$51=R38)*(Data!$U$2:$U$51=A38),0),0)) -> Wisconsin | T38: =SUMPRODUCT((Data!$B$2:$B$51=S38)*(Data!$C$2:$C$51=R38)*(Data!$K$2:$K$51)) -> 0.065
A39: 7 | B39: The Mid-West | C39: =INDEX(Data!$B$2:$B$51,MATCH(1,INDEX((Data!$C$2:$C$51=B39)*(Data!$Q$2:$Q$51=A39),0),0)) -> Minnesota | D39: =SUMPRODUCT((Data!$B$2:$B$51=C39)*(Data!$C$2:$C$51=B39)*(Data!$D$2:$D$51)) -> 5379139 | F39: The Mid-West | G39: =INDEX(Data!$B$2:$B$51,MATCH(1,INDEX((Data!$C$2:$C$51=F39)*(Data!$R$2:$R$51=A39),0),0)) -> Minnesota | H39: =SUMPRODUCT((Data!$B$2:$B$51=G39)*(Data!$C$2:$C$51=F39)*(Data!$H$2:$H$51)) -> 67.14 | J39: The Mid-West | K39: =INDEX(Data!$B$2:$B$51,MATCH(1,INDEX((Data!$C$2:$C$51=J39)*(Data!$S$2:$S$51=A39),0),0)) -> Wisconsin | L39: =SUMPRODUCT((Data!$B$2:$B$51=K39)*(Data!$C$2:$C$51=J39)*(Data!$I$2:$I$51)) -> 41498033000 | N39: The Mid-West | O39: =INDEX(Data!$B$2:$B$51,MATCH(1,INDEX((Data!$C$2:$C$51=N39)*(Data!$T$2:$T$51=A39),0),0)) -> Wisconsin | P39: =SUMPRODUCT((Data!$B$2:$B$51=O39)*(Data!$C$2:$C$51=N39)*(Data!$J$2:$J$51)) -> 66489591805 | R39: The Mid-West | S39: =INDEX(Data!$B$2:$B$51,MATCH(1,INDEX((Data!$C$2:$C$51=R39)*(Data!$U$2:$U$51=A39),0),0)) -> Kansas | T39: =SUMPRODUCT((Data!$B$2:$B$51=S39)*(Data!$C$2:$C$51=R39)*(Data!$K$2:$K$51)) -> 0.056
A40: 8 | B40: The Mid-West | C40: =INDEX(Data!$B$2:$B$51,MATCH(1,INDEX((Data!$C$2:$C$51=B40)*(Data!$Q$2:$Q$51=A40),0),0)) -> Iowa | D40: =SUMPRODUCT((Data!$B$2:$B$51=C40)*(Data!$C$2:$C$51=B40)*(Data!$D$2:$D$51)) -> 3074186 | F40: The Mid-West | G40: =INDEX(Data!$B$2:$B$51,MATCH(1,INDEX((Data!$C$2:$C$51=F40)*(Data!$R$2:$R$51=A40),0),0)) -> Iowa | H40: =SUMPRODUCT((Data!$B$2:$B$51=G40)*(Data!$C$2:$C$51=F40)*(Data!$H$2:$H$51)) -> 54.81 | J40: The Mid-West | K40: =INDEX(Data!$B$2:$B$51,MATCH(1,INDEX((Data!$C$2:$C$51=J40)*(Data!$S$2:$S$51=A40),0),0)) -> Kansas | L40: =SUMPRODUCT((Data!$B$2:$B$51=K40)*(Data!$C$2:$C$51=J40)*(Data!$I$2:$I$51)) -> 21904615000 | N40: The Mid-West | O40: =INDEX(Data!$B$2:$B$51,MATCH(1,INDEX((Data!$C$2:$C$51=N40)*(Data!$T$2:$T$51=A40),0),0)) -> Kansas | P40: =SUMPRODUCT((Data!$B$2:$B$51=O40)*(Data!$C$2:$C$51=N40)*(Data!$J$2:$J$51)) -> 3.32447959e+10 | R40: The Mid-West | S40: =INDEX(Data!$B$2:$B$51,MATCH(1,INDEX((Data!$C$2:$C$51=R40)*(Data!$U$2:$U$51=A40),0),0)) -> Minnesota | T40: =SUMPRODUCT((Data!$B$2:$B$51=S40)*(Data!$C$2:$C$51=R40)*(Data!$K$2:$K$51)) -> 0.048
A41: 9 | B41: The Mid-West | C41: =INDEX(Data!$B$2:$B$51,MATCH(1,INDEX((Data!$C$2:$C$51=B41)*(Data!$Q$2:$Q$51=A41),0),0)) -> Kansas | D41: =SUMPRODUCT((Data!$B$2:$B$51=C41)*(Data!$C$2:$C$51=B41)*(Data!$D$2:$D$51)) -> 2885905 | F41: The Mid-West | G41: =INDEX(Data!$B$2:$B$51,MATCH(1,INDEX((Data!$C$2:$C$51=F41)*(Data!$R$2:$R$51=A41),0),0)) -> Kansas | H41: =SUMPRODUCT((Data!$B$2:$B$51=G41)*(Data!$C$2:$C$51=F41)*(Data!$H$2:$H$51)) -> 35.09 | J41: The Mid-West | K41: =INDEX(Data!$B$2:$B$51,MATCH(1,INDEX((Data!$C$2:$C$51=J41)*(Data!$S$2:$S$51=A41),0),0)) -> Nebraska | L41: =SUMPRODUCT((Data!$B$2:$B$51=K41)*(Data!$C$2:$C$51=J41)*(Data!$I$2:$I$51)) -> 19795254000 | N41: The Mid-West | O41: =INDEX(Data!$B$2:$B$51,MATCH(1,INDEX((Data!$C$2:$C$51=N41)*(Data!$T$2:$T$51=A41),0),0)) -> Nebraska | P41: =SUMPRODUCT((Data!$B$2:$B$51=O41)*(Data!$C$2:$C$51=N41)*(Data!$J$2:$J$51)) -> 21188990795 | R41: The Mid-West | S41: =INDEX(Data!$B$2:$B$51,MATCH(1,INDEX((Data!$C$2:$C$51=R41)*(Data!$U$2:$U$51=A41),0),0)) -> Iowa | T41: =SUMPRODUCT((Data!$B$2:$B$51=S41)*(Data!$C$2:$C$51=R41)*(Data!$K$2:$K$51)) -> 0.046
A42: 10 | B42: The Mid-West | C42: =INDEX(Data!$B$2:$B$51,MATCH(1,INDEX((Data!$C$2:$C$51=B42)*(Data!$Q$2:$Q$51=A42),0),0)) -> Nebraska | D42: =SUMPRODUCT((Data!$B$2:$B$51=C42)*(Data!$C$2:$C$51=B42)*(Data!$D$2:$D$51)) -> 1855525 | F42: The Mid-West | G42: =INDEX(Data!$B$2:$B$51,MATCH(1,INDEX((Data!$C$2:$C$51=F42)*(Data!$R$2:$R$51=A42),0),0)) -> Nebraska | H42: =SUMPRODUCT((Data!$B$2:$B$51=G42)*(Data!$C$2:$C$51=F42)*(Data!$H$2:$H$51)) -> 23.97 | J42: The Mid-West | K42: =INDEX(Data!$B$2:$B$51,MATCH(1,INDEX((Data!$C$2:$C$51=J42)*(Data!$S$2:$S$51=A42),0),0)) -> Iowa | L42: =SUMPRODUCT((Data!$B$2:$B$51=K42)*(Data!$C$2:$C$51=J42)*(Data!$I$2:$I$51)) -> 18753596000 | N42: The Mid-West | O42: =INDEX(Data!$B$2:$B$51,MATCH(1,INDEX((Data!$C$2:$C$51=N42)*(Data!$T$2:$T$51=A42),0),0)) -> Iowa | P42: =SUMPRODUCT((Data!$B$2:$B$51=O42)*(Data!$C$2:$C$51=N42)*(Data!$J$2:$J$51)) -> 3.543676047e+10 | R42: The Mid-West | S42: =INDEX(Data!$B$2:$B$51,MATCH(1,INDEX((Data!$C$2:$C$51=R42)*(Data!$U$2:$U$51=A42),0),0)) -> Nebraska | T42: =SUMPRODUCT((Data!$B$2:$B$51=S42)*(Data!$C$2:$C$51=R42)*(Data!$K$2:$K$51)) -> 0.039
A43: 1 | B43: All Regions | C43: =INDEX(C$3:C$42,MATCH(VLOOKUP(LARGE(D$3:D$42,A43),D$3:D$42,1,0),D$3:D$42,0),1) -> California | D43: =VLOOKUP(LARGE(D$3:D$42,A43),D$3:D$42,1,0) -> 38041430 | F43: All Regions | G43: =INDEX(G$3:G$42,MATCH(VLOOKUP(LARGE(H$3:H$42,$A43),H$3:H$42,1,0),H$3:H$42,0),1) -> New Jersey | H43: =VLOOKUP(LARGE(H$3:H$42,$A43),H$3:H$42,1,0) -> 1189 | J43: All Regions | K43: =INDEX(K$3:K$42,MATCH(VLOOKUP(LARGE(L$3:L$42,$A43),L$3:L$42,1,0),L$3:L$42,0),1) -> California | L43: =VLOOKUP(LARGE(L$3:L$42,$A43),L$3:L$42,1,0) -> 292563574000 | N43: All Regions | O43: =INDEX(O$3:O$42,MATCH(VLOOKUP(LARGE(P$3:P$42,$A43),P$3:P$42,1,0),P$3:P$42,0),1) -> California | P43: =VLOOKUP(LARGE(P$3:P$42,$A43),P$3:P$42,1,0) -> 4.359148053e+11 | R43: All Regions | S43: =INDEX(S$3:S$42,MATCH(VLOOKUP(LARGE(T$3:T$42,$A43),T$3:T$42,1,0),T$3:T$42,0),1) -> Nevada | T43: =VLOOKUP(LARGE(T$3:T$42,A43),T$3:T$42,1,0) -> 0.093
A44: 2 | B44: All Regions | C44: Texas | D44: 26059203 | F44: All Regions | G44: Massachusetts | H44: 852.1 | J44: All Regions | K44: Texas | L44: 219459878000 | N44: All Regions | O44: Texas | P44: 293723251710 | R44: All Regions | S44: Rhode Island | T44: 0.092
A45: 3 | B45: All Regions | C45: New York | D45: 19570261 | F45: All Regions | G45: Connecticut | H45: 741.4 | J45: All Regions | K45: New York | L45: 201167954000 | N45: All Regions | O45: New York | P45: 2.261376776e+11 | R45: All Regions | S45: Michigan | T45: 0.09
A46: 4 | B46: All Regions | C46: Florida | D46: 19317568 | F46: All Regions | G46: Maryland | H46: 606.2 | J46: All Regions | K46: Illinois | L46: 124431227000 | N46: All Regions | O46: Florida | P46: 2.195617839e+11 | R46: All Regions | S46: Illinois | T46: 0.089
A47: 5 | B47: All Regions | C47: Illinois | D47: 12875255 | F47: All Regions | G47: Delaware | H47: 470.7 | J47: All Regions | K47: Florida | L47: 122249635000 | N47: All Regions | O47: Illinois | P47: 149784245275 | R47: All Regions | S47: California | T47: 0.087
A48: 6 | B48: All Regions | C48: =INDEX(C$3:C$42,MATCH(VLOOKUP(LARGE(D$3:D$42,A48),D$3:D$42,1,0),D$3:D$42,0),1) -> Pennsylvania | D48: =VLOOKUP(LARGE(D$3:D$42,A48),D$3:D$42,1,0) -> 12763536 | F48: All Regions | G48: =INDEX(G$3:G$42,MATCH(VLOOKUP(LARGE(H$3:H$42,$A48),H$3:H$42,1,0),H$3:H$42,0),1) -> New York | H48: =VLOOKUP(LARGE(H$3:H$42,$A48),H$3:H$42,1,0) -> 415.3 | J48: All Regions | K48: =INDEX(K$3:K$42,MATCH(VLOOKUP(LARGE(L$3:L$42,$A48),L$3:L$42,1,0),L$3:L$42,0),1) -> New Jersey | L48: =VLOOKUP(LARGE(L$3:L$42,$A48),L$3:L$42,1,0) -> 111377490000 | N48: All Regions | O48: =INDEX(O$3:O$42,MATCH(VLOOKUP(LARGE(P$3:P$42,$A48),P$3:P$42,1,0),P$3:P$42,0),1) -> Pennsylvania | P48: =VLOOKUP(LARGE(P$3:P$42,$A48),P$3:P$42,1,0) -> 148322935565 | R48: All Regions | S48: =INDEX(S$3:S$42,MATCH(VLOOKUP(LARGE(T$3:T$42,$A48),T$3:T$42,1,0),T$3:T$42,0),1) -> Mississippi | T48: =VLOOKUP(LARGE(T$3:T$42,A48),T$3:T$42,1,0) -> 0.085
A49: 7 | B49: All Regions | C49: =INDEX(C$3:C$42,MATCH(VLOOKUP(LARGE(D$3:D$42,A49),D$3:D$42,1,0),D$3:D$42,0),1) -> Ohio | D49: =VLOOKUP(LARGE(D$3:D$42,A49),D$3:D$42,1,0) -> 11544225 | F49: All Regions | G49: =INDEX(G$3:G$42,MATCH(VLOOKUP(LARGE(H$3:H$42,$A49),H$3:H$42,1,0),H$3:H$42,0),1) -> Florida | H49: =VLOOKUP(LARGE(H$3:H$42,$A49),H$3:H$42,1,0) -> 360.2 | J49: All Regions | K49: =INDEX(K$3:K$42,MATCH(VLOOKUP(LARGE(L$3:L$42,$A49),L$3:L$42,1,0),L$3:L$42,0),1) -> Ohio | L49: =VLOOKUP(LARGE(L$3:L$42,$A49),L$3:L$42,1,0) -> 111094276000 | N49: All Regions | O49: =INDEX(O$3:O$42,MATCH(VLOOKUP(LARGE(P$3:P$42,$A49),P$3:P$42,1,0),P$3:P$42,0),1) -> Ohio | P49: =VLOOKUP(LARGE(P$3:P$42,$A49),P$3:P$42,1,0) -> 1.348058207e+11 | R49: All Regions | S49: =INDEX(S$3:S$42,MATCH(VLOOKUP(LARGE(T$3:T$42,$A49),T$3:T$42,1,0),T$3:T$42,0),1) -> Tennessee | T49: =VLOOKUP(LARGE(T$3:T$42,A49),T$3:T$42,1,0) -> 0.084
A50: 8 | B50: All Regions | C50: Georgia | D50: 9919945 | F50: All Regions | G50: Pennsylvania | H50: 285.3 | J50: All Regions | K50: Pennsylvania | L50: 108961515000 | N50: All Regions | O50: Michigan | P50: 1.154434671e+11 | R50: All Regions | S50: Tennessee | T50: =VLOOKUP(LARGE(T$3:T$42,A50),T$3:T$42,1,0) -> 0.084
A51: 9 | B51: All Regions | C51: Michigan | D51: 9883360 | F51: All Regions | G51: Ohio | H51: 282.5 | J51: All Regions | K51: Massachusetts | L51: 79826976000 | N51: All Regions | O51: Georgia | P51: 113251502525 | R51: All Regions | S51: Tennessee | T51: =VLOOKUP(LARGE(T$3:T$42,A51),T$3:T$42,1,0) -> 0.084
A52: 10 | B52: All Regions | C52: North Carolina | D52: 9752073 | F52: All Regions | G52: California | H52: 244.2 | J52: All Regions | K52: Minnesota | L52: 78685402000 | N52: All Regions | O52: North Carolina | P52: 1.114248654e+11 | R52: All Regions | S52: Arizona | T52: =VLOOKUP(LARGE(T$3:T$42,A52),T$3:T$42,1,0) -> 0.082
A54: Table & Chart | B54: Region | C54: State | D54: Pop | F54: Region | G54: State | H54: Density | J54: Region | K54: State | L54: Revenue | N54: Region | O54: State | P54: Expenses | R54: Region | S54: State | T54: Unemployment
A55: 1 | B55: =Summary!$D$1 -> All Regions | C55: =INDEX(C$3:C$52,MATCH(1,INDEX(($A$3:$A$52=$A55)*(B$3:B$52=B55),0),0)) -> California | D55: =SUMPRODUCT((B$3:B$52=B55)*(C$3:C$52=C55)*(D$3:D$52)) -> 38041430 | F55: =$B55 -> All Regions | G55: =INDEX(G$3:G$52,MATCH(1,INDEX(($A$3:$A$52=$A55)*(F$3:F$52=F55),0),0)) -> New Jersey | H55: =SUMPRODUCT((F$3:F$52=F55)*(G$3:G$52=G55)*(H$3:H$52)) -> 1189 | J55: =$B55 -> All Regions | K55: =INDEX(K$3:K$52,MATCH(1,INDEX(($A$3:$A$52=$A55)*(J$3:J$52=J55),0),0)) -> California | L55: =SUMPRODUCT((J$3:J$52=J55)*(K$3:K$52=K55)*(L$3:L$52))/1000 -> 292563574 | N55: =$B55 -> All Regions | O55: =INDEX(O$3:O$52,MATCH(1,INDEX(($A$3:$A$52=$A55)*(N$3:N$52=N55),0),0)) -> California | P55: =SUMPRODUCT((N$3:N$52=N55)*(O$3:O$52=O55)*(P$3:P$52))/1000 -> 435914805.3 | R55: =$B55 -> All Regions | S55: =INDEX(S$3:S$52,MATCH(1,INDEX(($A$3:$A$52=$A55)*(R$3:R$52=R55),0),0)) -> Nevada | T55: =SUMPRODUCT((R$3:R$52=R55)*(S$3:S$52=S55)*(T$3:T$52)) -> 0.093
A56: 2 | B56: =Summary!$D$1 -> All Regions | C56: =INDEX(C$3:C$52,MATCH(1,INDEX(($A$3:$A$52=$A56)*(B$3:B$52=B56),0),0)) -> Texas | D56: =SUMPRODUCT((B$3:B$52=B56)*(C$3:C$52=C56)*(D$3:D$52)) -> 26059203 | F56: =$B56 -> All Regions | G56: =INDEX(G$3:G$52,MATCH(1,INDEX(($A$3:$A$52=$A56)*(F$3:F$52=F56),0),0)) -> Massachusetts | H56: =SUMPRODUCT((F$3:F$52=F56)*(G$3:G$52=G56)*(H$3:H$52)) -> 852.1 | J56: =$B56 -> All Regions | K56: =INDEX(K$3:K$52,MATCH(1,INDEX(($A$3:$A$52=$A56)*(J$3:J$52=J56),0),0)) -> Texas | L56: =SUMPRODUCT((J$3:J$52=J56)*(K$3:K$52=K56)*(L$3:L$52))/1000 -> 219459878 | N56: =$B56 -> All Regions | O56: =INDEX(O$3:O$52,MATCH(1,INDEX(($A$3:$A$52=$A56)*(N$3:N$52=N56),0),0)) -> Texas | P56: =SUMPRODUCT((N$3:N$52=N56)*(O$3:O$52=O56)*(P$3:P$52))/1000 -> 293723251.7 | R56: =$B56 -> All Regions | S56: =INDEX(S$3:S$52,MATCH(1,INDEX(($A$3:$A$52=$A56)*(R$3:R$52=R56),0),0)) -> Rhode Island | T56: =SUMPRODUCT((R$3:R$52=R56)*(S$3:S$52=S56)*(T$3:T$52)) -> 0.092
A57: 3 | B57: =Summary!$D$1 -> All Regions | C57: =INDEX(C$3:C$52,MATCH(1,INDEX(($A$3:$A$52=$A57)*(B$3:B$52=B57),0),0)) -> New York | D57: =SUMPRODUCT((B$3:B$52=B57)*(C$3:C$52=C57)*(D$3:D$52)) -> 19570261 | F57: All Regions | G57: =INDEX(G$3:G$52,MATCH(1,INDEX(($A$3:$A$52=$A57)*(F$3:F$52=F57),0),0)) -> Connecticut | H57: =SUMPRODUCT((F$3:F$52=F57)*(G$3:G$52=G57)*(H$3:H$52)) -> 741.4 | J57: All Regions | K57: =INDEX(K$3:K$52,MATCH(1,INDEX(($A$3:$A$52=$A57)*(J$3:J$52=J57),0),0)) -> New York | L57: =SUMPRODUCT((J$3:J$52=J57)*(K$3:K$52=K57)*(L$3:L$52))/1000 -> 201167954 | N57: All Regions | O57: =INDEX(O$3:O$52,MATCH(1,INDEX(($A$3:$A$52=$A57)*(N$3:N$52=N57),0),0)) -> New York | P57: =SUMPRODUCT((N$3:N$52=N57)*(O$3:O$52=O57)*(P$3:P$52))/1000 -> 226137677.6 | R57: All Regions | S57: =INDEX(S$3:S$52,MATCH(1,INDEX(($A$3:$A$52=$A57)*(R$3:R$52=R57),0),0)) -> Michigan | T57: =SUMPRODUCT((R$3:R$52=R57)*(S$3:S$52=S57)*(T$3:T$52)) -> 0.09
A58: 4 | B58: =Summary!$D$1 -> All Regions | C58: =INDEX(C$3:C$52,MATCH(1,INDEX(($A$3:$A$52=$A58)*(B$3:B$52=B58),0),0)) -> Florida | D58: =SUMPRODUCT((B$3:B$52=B58)*(C$3:C$52=C58)*(D$3:D$52)) -> 19317568 | F58: All Regions | G58: =INDEX(G$3:G$52,MATCH(1,INDEX(($A$3:$A$52=$A58)*(F$3:F$52=F58),0),0)) -> Maryland | H58: =SUMPRODUCT((F$3:F$52=F58)*(G$3:G$52=G58)*(H$3:H$52)) -> 606.2 | J58: All Regions | K58: =INDEX(K$3:K$52,MATCH(1,INDEX(($A$3:$A$52=$A58)*(J$3:J$52=J58),0),0)) -> Illinois | L58: =SUMPRODUCT((J$3:J$52=J58)*(K$3:K$52=K58)*(L$3:L$52))/1000 -> 124431227 | N58: All Regions | O58: =INDEX(O$3:O$52,MATCH(1,INDEX(($A$3:$A$52=$A58)*(N$3:N$52=N58),0),0)) -> Florida | P58: =SUMPRODUCT((N$3:N$52=N58)*(O$3:O$52=O58)*(P$3:P$52))/1000 -> 219561783.9 | R58: All Regions | S58: =INDEX(S$3:S$52,MATCH(1,INDEX(($A$3:$A$52=$A58)*(R$3:R$52=R58),0),0)) -> Illinois | T58: =SUMPRODUCT((R$3:R$52=R58)*(S$3:S$52=S58)*(T$3:T$52)) -> 0.089
A59: 5 | B59: =Summary!$D$1 -> All Regions | C59: =INDEX(C$3:C$52,MATCH(1,INDEX(($A$3:$A$52=$A59)*(B$3:B$52=B59),0),0)) -> Illinois | D59: =SUMPRODUCT((B$3:B$52=B59)*(C$3:C$52=C59)*(D$3:D$52)) -> 12875255 | F59: All Regions | G59: =INDEX(G$3:G$52,MATCH(1,INDEX(($A$3:$A$52=$A59)*(F$3:F$52=F59),0),0)) -> Delaware | H59: =SUMPRODUCT((F$3:F$52=F59)*(G$3:G$52=G59)*(H$3:H$52)) -> 470.7 | J59: All Regions | K59: =INDEX(K$3:K$52,MATCH(1,INDEX(($A$3:$A$52=$A59)*(J$3:J$52=J59),0),0)) -> Florida | L59: =SUMPRODUCT((J$3:J$52=J59)*(K$3:K$52=K59)*(L$3:L$52))/1000 -> 122249635 | N59: All Regions | O59: =INDEX(O$3:O$52,MATCH(1,INDEX(($A$3:$A$52=$A59)*(N$3:N$52=N59),0),0)) -> Illinois | P59: =SUMPRODUCT((N$3:N$52=N59)*(O$3:O$52=O59)*(P$3:P$52))/1000 -> 149784245.3 | R59: All Regions | S59: =INDEX(S$3:S$52,MATCH(1,INDEX(($A$3:$A$52=$A59)*(R$3:R$52=R59),0),0)) -> California | T59: =SUMPRODUCT((R$3:R$52=R59)*(S$3:S$52=S59)*(T$3:T$52)) -> 0.087
A61: 1 | B61: =Summary!$D$1 -> All Regions | C61: =INDEX(C$3:C$52,MATCH(1,INDEX(($A$3:$A$52=$A61)*(B$3:B$52=B61),0),0)) -> California | D61: =SUMPRODUCT((B$3:B$52=B61)*(C$3:C$52=C61)*(D$3:D$52)) -> 38041430 | F61: =$B61 -> All Regions | G61: =INDEX(G$3:G$52,MATCH(1,INDEX(($A$3:$A$52=$A61)*(F$3:F$52=F61),0),0)) -> New Jersey | H61: =SUMPRODUCT((F$3:F$52=F61)*(G$3:G$52=G61)*(H$3:H$52)) -> 1189 | J61: =$B61 -> All Regions | K61: =INDEX(K$3:K$52,MATCH(1,INDEX(($A$3:$A$52=$A61)*(J$3:J$52=J61),0),0)) -> California | L61: =SUMPRODUCT((J$3:J$52=J61)*(K$3:K$52=K61)*(L$3:L$52))/1000 -> 292563574 | N61: =$B61 -> All Regions | O61: =INDEX(O$3:O$52,MATCH(1,INDEX(($A$3:$A$52=$A61)*(N$3:N$52=N61),0),0)) -> California | P61: =SUMPRODUCT((N$3:N$52=N61)*(O$3:O$52=O61)*(P$3:P$52))/1000 -> 435914805.3 | R61: =$B61 -> All Regions | S61: =INDEX(S$3:S$52,MATCH(1,INDEX(($A$3:$A$52=$A61)*(R$3:R$52=R61),0),0)) -> Nevada | T61: =SUMPRODUCT((R$3:R$52=R61)*(S$3:S$52=S61)*(T$3:T$52)) -> 0.093
A62: 2 | B62: =Summary!$D$1 -> All Regions | C62: Texas | D62: =SUMPRODUCT((B$3:B$52=B62)*(C$3:C$52=C62)*(D$3:D$52)) -> 26059203 | F62: =$B62 -> All Regions | G62: =INDEX(G$3:G$52,MATCH(1,INDEX(($A$3:$A$52=$A62)*(F$3:F$52=F62),0),0)) -> Massachusetts | H62: =SUMPRODUCT((F$3:F$52=F62)*(G$3:G$52=G62)*(H$3:H$52)) -> 852.1 | J62: =$B62 -> All Regions | K62: =INDEX(K$3:K$52,MATCH(1,INDEX(($A$3:$A$52=$A62)*(J$3:J$52=J62),0),0)) -> Texas | L62: =SUMPRODUCT((J$3:J$52=J62)*(K$3:K$52=K62)*(L$3:L$52))/1000 -> 219459878 | N62: =$B62 -> All Regions | O62: =INDEX(O$3:O$52,MATCH(1,INDEX(($A$3:$A$52=$A62)*(N$3:N$52=N62),0),0)) -> Texas | P62: =SUMPRODUCT((N$3:N$52=N62)*(O$3:O$52=O62)*(P$3:P$52))/1000 -> 293723251.7 | R62: =$B62 -> All Regions | S62: =INDEX(S$3:S$52,MATCH(1,INDEX(($A$3:$A$52=$A62)*(R$3:R$52=R62),0),0)) -> Rhode Island | T62: =SUMPRODUCT((R$3:R$52=R62)*(S$3:S$52=S62)*(T$3:T$52)) -> 0.092
A63: 3 | B63: =Summary!$D$1 -> All Regions | C63: New York | D63: =SUMPRODUCT((B$3:B$52=B63)*(C$3:C$52=C63)*(D$3:D$52)) -> 19570261 | F63: All Regions | G63: Connecticut | H63: 741.4 | J63: All Regions | K63: New York | L63: 201167954 | N63: All Regions | O63: New York | P63: 226137677.6 | R63: All Regions | S63: Michigan | T63: 0.09
A64: 4 | B64: =Summary!$D$1 -> All Regions | C64: Florida | D64: =SUMPRODUCT((B$3:B$52=B64)*(C$3:C$52=C64)*(D$3:D$52)) -> 19317568 | F64: All Regions | G64: Maryland | H64: 606.2 | J64: All Regions | K64: Illinois | L64: 124431227 | N64: All Regions | O64: Florida | P64: 219561783.9 | R64: All Regions | S64: Illinois | T64: 0.089
A65: 5 | B65: =Summary!$D$1 -> All Regions | C65: Illinois | D65: =SUMPRODUCT((B$3:B$52=B65)*(C$3:C$52=C65)*(D$3:D$52)) -> 12875255 | F65: All Regions | G65: Delaware | H65: 470.7 | J65: All Regions | K65: Florida | L65: 122249635 | N65: All Regions | O65: Illinois | P65: 149784245.3 | R65: All Regions | S65: California | T65: 0.087
A66: 6 | B66: =Summary!$D$1 -> All Regions | C66: Pennsylvania | D66: =SUMPRODUCT((B$3:B$52=B66)*(C$3:C$52=C66)*(D$3:D$52)) -> 12763536 | F66: All Regions | G66: New York | H66: 415.3 | J66: All Regions | K66: New Jersey | L66: 111377490 | N66: All Regions | O66: Pennsylvania | P66: 148322935.6 | R66: All Regions | S66: Mississippi | T66: 0.085
A67: 7 | B67: =Summary!$D$1 -> All Regions | C67: Ohio | D67: 11544225 | F67: All Regions | G67: Florida | H67: 360.2 | J67: All Regions | K67: Ohio | L67: 111094276 | N67: All Regions | O67: Ohio | P67: 134805820.7 | R67: All Regions | S67: Tennessee | T67: 0.252
A68: 8 | B68: =Summary!$D$1 -> All Regions | C68: Georgia | D68: 9919945 | F68: All Regions | G68: Pennsylvania | H68: 285.3 | J68: All Regions | K68: Pennsylvania | L68: 108961515 | N68: All Regions | O68: Michigan | P68: 115443467.1 | R68: All Regions | S68: Tennessee | T68: 0.252
A69: 9 | B69: =Summary!$D$1 -> All Regions | C69: Michigan | D69: 9883360 | F69: All Regions | G69: Ohio | H69: 282.5 | J69: All Regions | K69: Massachusetts | L69: 79826976 | N69: All Regions | O69: Georgia | P69: 113251502.5 | R69: All Regions | S69: Tennessee | T69: 0.252
A70: 10 | B70: =Summary!$D$1 -> All Regions | C70: North Carolina | D70: 9752073 | F70: All Regions | G70: California | H70: 244.2 | J70: All Regions | K70: Minnesota | L70: 78685402 | N70: All Regions | O70: North Carolina | P70: 111424865.4 | R70: All Regions | S70: Arizona | T70: 0.082
A72: 1 | B72: =Summary!$D$1 -> All Regions | C72: =C61 -> California | D72: =D61 -> 38041430 | F72: =SUMPRODUCT((Data!$B$2:$B$51=C72)*(Data!$K$2:$K$51)) -> 0.087
A73: 2 | B73: =Summary!$D$1 -> All Regions | C73: =C62 -> Texas | D73: 26059203 | F73: =SUMPRODUCT((Data!$B$2:$B$51=C73)*(Data!$K$2:$K$51)) -> 0.062
A74: 3 | B74: =Summary!$D$1 -> All Regions | C74: New York | D74: 19570261 | F74: =SUMPRODUCT((Data!$B$2:$B$51=C74)*(Data!$K$2:$K$51)) -> 0.077
A75: 4 | B75: =Summary!$D$1 -> All Regions | C75: Florida | D75: 19317568 | F75: =SUMPRODUCT((Data!$B$2:$B$51=C75)*(Data!$K$2:$K$51)) -> 0.067
A76: 5 | B76: =Summary!$D$1 -> All Regions | C76: Illinois | D76: 12875255 | F76: =SUMPRODUCT((Data!$B$2:$B$51=C76)*(Data!$K$2:$K$51)) -> 0.089
A77: 6 | B77: =Summary!$D$1 -> All Regions | C77: Pennsylvania | D77: 12763536 | F77: =SUMPRODUCT((Data!$B$2:$B$51=C77)*(Data!$K$2:$K$51)) -> 0.075
A78: 7 | B78: =Summary!$D$1 -> All Regions | C78: Ohio | D78: 11544225 | F78: =SUMPRODUCT((Data!$B$2:$B$51=C78)*(Data!$K$2:$K$51)) -> 0.075
A79: 8 | B79: =Summary!$D$1 -> All Regions | C79: Georgia | D79: 9919945 | F79: =SUMPRODUCT((Data!$B$2:$B$51=C79)*(Data!$K$2:$K$51)) -> 0.081
A80: 9 | B80: =Summary!$D$1 -> All Regions | C80: Michigan | D80: 9883360 | F80: =SUMPRODUCT((Data!$B$2:$B$51=C80)*(Data!$K$2:$K$51)) -> 0.09
A81: 10 | B81: =Summary!$D$1 -> All Regions | C81: North Carolina | D81: 9752073 | F81: =SUMPRODUCT((Data!$B$2:$B$51=C81)*(Data!$K$2:$K$51)) -> 0.08
B85: Region | C85: Population 2012 | D85: Population 2012 | F85: Region | G85: Population 2012 | H85: Population 2010
B86: The West | C86: =SUMPRODUCT((Data!$C$2:$C$51=$F86)*(Data!$H$2:$H$51)) -> 820.043 | D86: =SUMPRODUCT((Data!$C$2:$C$51=$F86)*(Data!$D$2:$D$51)) -> 73579431 | F86: The West | G86: =SUMPRODUCT((Data!$C$2:$C$51=$F86)*(Data!D$2:D$51)) -> 73579431 | H86: =SUMPRODUCT((Data!$C$2:$C$51=$F86)*(Data!E$2:E$51)) -> 71945553
B87: The South | C87: =SUMPRODUCT((Data!$C$2:$C$51=$F87)*(Data!$H$2:$H$51)) -> 1914.23 | D87: =SUMPRODUCT((Data!$C$2:$C$51=$F87)*(Data!$D$2:$D$51)) -> 109823243 | F87: The South | G87: =SUMPRODUCT((Data!$C$2:$C$51=$F87)*(Data!$D$2:$D$51)) -> 109823243 | H87: =SUMPRODUCT((Data!$C$2:$C$51=$F87)*(Data!$D$2:$D$51)) -> 109823243
B88: The North-East | C88: =SUMPRODUCT((Data!$C$2:$C$51=$F88)*(Data!$H$2:$H$51)) -> 4918.37 | D88: =SUMPRODUCT((Data!$C$2:$C$51=$F88)*(Data!$D$2:$D$51)) -> 62562746 | F88: The North-East | G88: =SUMPRODUCT((Data!$C$2:$C$51=$F88)*(Data!$D$2:$D$51)) -> 62562746 | H88: =SUMPRODUCT((Data!$C$2:$C$51=$F88)*(Data!$D$2:$D$51)) -> 62562746
B89: The Mid-West | C89: =SUMPRODUCT((Data!$C$2:$C$51=$F89)*(Data!$H$2:$H$51)) -> 1265.946 | D89: =SUMPRODUCT((Data!$C$2:$C$51=$F89)*(Data!$D$2:$D$51)) -> 67316297 | F89: The Mid-West | G89: =SUMPRODUCT((Data!$C$2:$C$51=$F89)*(Data!$D$2:$D$51)) -> 67316297 | H89: =SUMPRODUCT((Data!$C$2:$C$51=$F89)*(Data!$D$2:$D$51)) -> 67316297

Sheet Summary
B1: TRUE | D1: =IF(B1=TRUE,"All Regions",IF(B2=TRUE,"The West",IF(B3=TRUE,"The Mid-West",IF(B4=TRUE,"The South",IF(B5=TRUE,"The North-East",""))))) -> All Regions
B2: FALSE
B3: FALSE
B4: FALSE
B5: FALSE
D7: TOP 5 by Metrics by State and Region
B9: Flag | D9: State | E9: Population | L9: Flag | N9: State | O9: % Unemployment
A10: 1 | C10: =INDEX(States!C$2:C$51,MATCH(D10,States!D$2:D$51,0),1) -> California | D10: =Calcs!C55 -> California | E10: =Calcs!D55 -> 38041430 | M10: =INDEX(States!C$2:C$51,MATCH(N10,States!D$2:D$51,0),1) -> Nevada | N10: =Calcs!S55 -> Nevada | O10: =Calcs!T55 -> 0.093
A11: 2 | C11: =INDEX(States!C$2:C$51,MATCH(D11,States!D$2:D$51,0),1) -> Texas | D11: =Calcs!C56 -> Texas | E11: =Calcs!D56 -> 26059203 | M11: =INDEX(States!C$2:C$51,MATCH(N11,States!D$2:D$51,0),1) -> RhodeIsland | N11: =Calcs!S56 -> Rhode Island | O11: =Calcs!T56 -> 0.092
A12: 3 | C12: =INDEX(States!C$2:C$51,MATCH(D12,States!D$2:D$51,0),1) -> NewYork | D12: =Calcs!C57 -> New York | E12: =Calcs!D57 -> 19570261 | M12: =INDEX(States!C$2:C$51,MATCH(N12,States!D$2:D$51,0),1) -> Michigan | N12: =Calcs!S57 -> Michigan | O12: =Calcs!T57 -> 0.09
A13: 4 | C13: =INDEX(States!C$2:C$51,MATCH(D13,States!D$2:D$51,0),1) -> Florida | D13: =Calcs!C58 -> Florida | E13: =Calcs!D58 -> 19317568 | M13: =INDEX(States!C$2:C$51,MATCH(N13,States!D$2:D$51,0),1) -> Illinois | N13: =Calcs!S58 -> Illinois | O13: =Calcs!T58 -> 0.089
A14: 5 | C14: =INDEX(States!C$2:C$51,MATCH(D14,States!D$2:D$51,0),1) -> Illinois | D14: =Calcs!C59 -> Illinois | E14: =Calcs!D59 -> 12875255 | M14: =INDEX(States!C$2:C$51,MATCH(N14,States!D$2:D$51,0),1) -> California | N14: =Calcs!S59 -> California | O14: =Calcs!T59 -> 0.087
B16: Flag | D16: State | E16: Revenue | L16: Flag | N16: State | O16: Expenses
A17: 1 | C17: =INDEX(States!C$2:C$51,MATCH(D17,States!D$2:D$51,0),1) -> California | D17: =Calcs!K55 -> California | E17: =Calcs!L55 -> 292563574 | M17: =INDEX(States!C$2:C$51,MATCH(N17,States!D$2:D$51,0),1) -> California | N17: =Calcs!O55 -> California | O17: =Calcs!P55 -> 435914805.3
A18: 2 | C18: =INDEX(States!C$2:C$51,MATCH(D18,States!D$2:D$51,0),1) -> Texas | D18: =Calcs!K56 -> Texas | E18: =Calcs!L56 -> 219459878 | M18: =INDEX(States!C$2:C$51,MATCH(N18,States!D$2:D$51,0),1) -> Texas | N18: =Calcs!O56 -> Texas | O18: =Calcs!P56 -> 293723251.7
A19: 3 | C19: =INDEX(States!C$2:C$51,MATCH(D19,States!D$2:D$51,0),1) -> NewYork | D19: =Calcs!K57 -> New York | E19: =Calcs!L57 -> 201167954 | M19: =INDEX(States!C$2:C$51,MATCH(N19,States!D$2:D$51,0),1) -> NewYork | N19: =Calcs!O57 -> New York | O19: =Calcs!P57 -> 226137677.6
A20: 4 | C20: =INDEX(States!C$2:C$51,MATCH(D20,States!D$2:D$51,0),1) -> Illinois | D20: =Calcs!K58 -> Illinois | E20: =Calcs!L58 -> 124431227 | M20: =INDEX(States!C$2:C$51,MATCH(N20,States!D$2:D$51,0),1) -> Florida | N20: =Calcs!O58 -> Florida | O20: =Calcs!P58 -> 219561783.9
A21: 5 | C21: =INDEX(States!C$2:C$51,MATCH(D21,States!D$2:D$51,0),1) -> Florida | D21: =Calcs!K59 -> Florida | E21: =Calcs!L59 -> 122249635 | M21: =INDEX(States!C$2:C$51,MATCH(N21,States!D$2:D$51,0),1) -> Illinois | N21: =Calcs!O59 -> Illinois | O21: =Calcs!P59 -> 149784245.3
